Workbook

Sheet Paste Raw XRD Data
A1: No | C1: Transparent | D1: 1 | E1: [19.407 - 20.403] | F1: Area List #3 | G1: U1481A_2R2_93_94_QRND7995051.raw #1 | H1: 19.407 | I1: 20.403 | J1: 9.53 | K1: 10.7 | L1: 19.839 | M1: 4.47171 | N1: 15.4 | O1: 5.36 | P1: 0.335 | Q1: 19.842 | R1: 4.47098 | S1: 0.386 | T1: 19.859 | U1: 4.46711 | V1: 12.14 | W1: 2.068 | X1: 267.5 | Y1: 1 | Z1: 0 | AA1: No
A2: No | C2: Transparent | D2: 2 | E2: [26.298 - 26.996] | F2: Area List #3 | G2: U1481A_2R2_93_94_QRND7995051.raw #1 | H2: 26.298 | I2: 26.996 | J2: 10.7 | K2: 13.2 | L2: 26.683 | M2: 3.33821 | N2: 89.7 | O2: 77.6 | P2: 0.13 | Q2: 26.69 | R2: 3.33732 | S2: 0.148 | T2: 26.693 | U2: 3.33696 | V2: 19.83 | W2: 11.48 | X2: 699.2 | Y2: 1 | Z2: 0 | AA2: No
A3: No | C3: Transparent | D3: 3 | E3: [27.394 - 27.992] | F3: Area List #3 | G3: U1481A_2R2_93_94_QRND7995051.raw #1 | H3: 27.394 | I3: 27.992 | J3: 11.3 | K3: 15.1 | L3: 27.974 | M3: 3.18696 | N3: 16.1 | O3: 1.17 | P3: 0.046 | Q3: 27.963 | R3: 3.18817 | S3: -0.304 | T3: 27.658 | U3: 3.22272 | V3: 7.521 | W3: -0.3561 | X3: 1972.6 | Y3: 1 | Z3: 0 | AA3: No
A4: No | C4: Transparent | D4: 4 | E4: [29.105 - 29.703] | F4: Area List #3 | G4: U1481A_2R2_93_94_QRND7995051.raw #1 | H4: 29.105 | I4: 29.703 | J4: 9.2 | K4: 9.23 | L4: 29.159 | M4: 3.0601 | N4: 9.63 | O4: 0.427 | P4: 0.02 | Q4: 29.16 | R4: 3.06001 | S4: -0.191 | T4: 29.46 | U4: 3.02955 | V4: 5.429 | W4: -0.08139 | X4: 4558.8 | Y4: 1 | Z4: 0 | AA4: No
A5: Yes | C5: Transparent | D5: 1 | E5: [19.407 - 20.403] | F5: Area List #3 | G5: U1481A_2R4_2_3_QRND7995071.raw #1 | H5: 19.407 | I5: 20.403 | J5: 8.45 | K5: 9.53 | L5: 19.862 | M5: 4.46642 | N5: 14.1 | O5: 5.18 | P5: 0.324 | Q5: 19.856 | R5: 4.46779 | S5: 0.371 | T5: 19.877 | U5: 4.4631 | V5: 10.88 | W5: 1.921 | X5: 276.7 | Y5: 1 | Z5: 0 | AA5: No
A6: Yes | C6: Transparent | D6: 2 | E6: [26.298 - 26.996] | F6: Area List #3 | G6: U1481A_2R4_2_3_QRND7995071.raw #1 | H6: 26.298 | I6: 26.996 | J6: 10.5 | K6: 13.8 | L6: 26.682 | M6: 3.33826 | N6: 108 | O6: 95.3 | P6: 0.134 | Q6: 26.69 | R6: 3.33737 | S6: 0.155 | T6: 26.696 | U6: 3.33653 | V6: 23.27 | W6: 14.79 | X6: 675.2 | Y6: 1 | Z6: 0 | AA6: No
A7: Yes | C7: Transparent | D7: 3 | E7: [29.105 - 29.703] | F7: Area List #3 | G7: U1481A_2R4_2_3_QRND7995071.raw #1 | H7: 29.105 | I7: 29.703 | J7: 8.36 | K7: 8.46 | L7: 29.14 | M7: 3.06209 | N7: 8.79 | O7: 0.431 | P7: 0.017 | Q7: 29.14 | R7: 3.06209 | S7: -0.21 | T7: 29.465 | U7: 3.02907 | V7: 4.934 | W7: -0.09061 | X7: 5461.2 | Y7: 1 | Z7: 0 | AA7: No
A8: Yes | C8: Transparent | D8: 4 | E8: [27.394 - 28.208] | F8: Area List #3 | G8: U1481A_2R4_2_3_QRND7995071.raw #1 | H8: 27.394 | I8: 28.208 | J8: 10.8 | K8: 10.8 | L8: 27.964 | M8: 3.18805 | N8: 17.5 | O8: 6.7 | P8: 0.174 | Q8: 27.956 | R8: 3.18901 | S8: 0.238 | T8: 27.882 | U8: 3.19734 | V8: 10.36 | W8: 1.593 | X8: 523.1 | Y8: 1 | Z8: 0 | AA8: No
A9: Yes | C9: Transparent | D9: 1 | E9: [19.407 - 20.403] | F9: Area List #3 | G9: U1481A_3R1_113_114_QRND7996401.raw #1 | H9: 19.407 | I9: 20.403 | J9: 10 | K9: 11 | L9: 19.853 | M9: 4.46841 | N9: 15.4 | O9: 4.95 | P9: 0.374 | Q9: 19.843 | R9: 4.47082 | S9: 0.431 | T9: 19.868 | U9: 4.46506 | V9: 12.6 | W9: 2.133 | X9: 239.6 | Y9: 1 | Z9: 0 | AA9: No
A10: Yes | C10: Transparent | D10: 2 | E10: [26.298 - 26.996] | F10: Area List #3 | G10: U1481A_3R1_113_114_QRND7996401.raw #1 | H10: 26.298 | I10: 26.996 | J10: 11 | K10: 13.5 | L10: 26.68 | M10: 3.33856 | N10: 80.2 | O10: 67.9 | P10: 0.136 | Q10: 26.686 | R10: 3.3378 | S10: 0.157 | T10: 26.688 | U10: 3.33756 | V10: 19.16 | W10: 10.64 | X10: 669.1 | Y10: 1 | Z10: 0 | AA10: No
A11: Yes | C11: Transparent | D11: 3 | E11: [27.394 - 28.208] | F11: Area List #3 | G11: U1481A_3R1_113_114_QRND7996401.raw #1 | H11: 27.394 | I11: 28.208 | J11: 11.6 | K11: 11.6 | L11: 27.968 | M11: 3.18763 | N11: 16.5 | O11: 4.93 | P11: 0.204 | Q11: 27.946 | R11: 3.19013 | S11: 0.251 | T11: 27.887 | U11: 3.19679 | V11: 10.65 | W11: 1.239 | X11: 445.9 | Y11: 1 | Z11: 0 | AA11: No
A12: Yes | C12: Transparent | D12: 4 | E12: [29.105 - 29.703] | F12: Area List #3 | G12: U1481A_3R1_113_114_QRND7996401.raw #1 | H12: 29.105 | I12: 29.703 | J12: 9.6 | K12: 9.55 | L12: 29.692 | M12: 3.00639 | N12: 9.82 | O12: 0.275 | P12: 0 | Q12: 0 | R12: Infinity | S12: -0.144 | T12: 29.364 | U12: 3.03919 | V12: 5.684 | W12: -0.03963 | X12: 0 | Y12: 1 | Z12: 0 | AA12: No
A13: Yes | C13: Transparent | D13: 1 | E13: [19.407 - 20.403] | F13: Area List #3 | G13: U1481A_3R4_75_76_QRND7996561.raw #1 | H13: 19.407 | I13: 20.403 | J13: 7.18 | K13: 7.7 | L13: 19.893 | M13: 4.45955 | N13: 11.3 | O13: 3.91 | P13: 0.294 | Q13: 19.876 | R13: 4.46348 | S13: 0.325 | T13: 19.916 | U13: 4.45442 | V13: 8.682 | W13: 1.27 | X13: 304.5 | Y13: 1 | Z13: 0 | AA13: No
A14: Yes | C14: Transparent | D14: 2 | E14: [26.298 - 26.996] | F14: Area List #3 | G14: U1481A_3R4_75_76_QRND7996561.raw #1 | H14: 26.298 | I14: 26.996 | J14: 10.1 | K14: 14.6 | L14: 26.678 | M14: 3.33874 | N14: 165 | O14: 152 | P14: 0.134 | Q14: 26.684 | R14: 3.33803 | S14: 0.155 | T14: 26.691 | U14: 3.33719 | V14: 32.22 | W14: 23.61 | X14: 679 | Y14: 1 | Z14: 0 | AA14: No
A15: Yes | C15: Transparent | D15: 3 | E15: [27.394 - 28.208] | F15: Area List #3 | G15: U1481A_3R4_75_76_QRND7996561.raw #1 | H15: 27.394 | I15: 28.208 | J15: 9.6 | K15: 10.2 | L15: 27.973 | M15: 3.18705 | N15: 22.3 | O15: 12.3 | P15: 0.18 | Q15: 27.965 | R15: 3.18795 | S15: 0.266 | T15: 27.876 | U15: 3.19794 | V15: 11.32 | W15: 3.267 | X15: 505.1 | Y15: 1 | Z15: 0 | AA15: No
A16: Yes | C16: Transparent | D16: 4 | E16: [29.105 - 29.703] | F16: Area List #3 | G16: U1481A_3R4_75_76_QRND7996561.raw #1 | H16: 29.105 | I16: 29.703 | J16: 6.76 | K16: 7.2 | L16: 29.133 | M16: 3.06283 | N16: 7 | O16: 0.213 | P16: 0.021 | Q16: 29.131 | R16: 3.06298 | S16: -0.726 | T16: 29.452 | U16: 3.03034 | V16: 4.018 | W16: -0.1548 | X16: 4407.9 | Y16: 1 | Z16: 0 | AA16: No
A17: Yes | C17: Transparent | D17: 1 | E17: [19.407 - 20.403] | F17: Area List #3 | G17: U1481A_4R3_64_65_QRND7997511.raw #1 | H17: 19.407 | I17: 20.403 | J17: 8.04 | K17: 8.81 | L17: 19.853 | M17: 4.46855 | N17: 14.2 | O17: 5.79 | P17: 0.294 | Q17: 19.851 | R17: 4.46888 | S17: 0.335 | T17: 19.866 | U17: 4.46562 | V17: 10.33 | W17: 1.94 | X17: 304.7 | Y17: 1 | Z17: 0 | AA17: No
A18: Yes | C18: Transparent | D18: 2 | E18: [26.298 - 26.996] | F18: Area List #3 | G18: U1481A_4R3_64_65_QRND7997511.raw #1 | H18: 26.298 | I18: 26.996 | J18: 10 | K18: 13.3 | L18: 26.671 | M18: 3.33965 | N18: 103 | O18: 91.1 | P18: 0.141 | Q18: 26.679 | R18: 3.33871 | S18: 0.167 | T18: 26.689 | U18: 3.33744 | V18: 23.35 | W18: 15.21 | X18: 642.8 | Y18: 1 | Z18: 0 | AA18: No
A19: Yes | C19: Transparent | D19: 3 | E19: [27.394 - 28.208] | F19: Area List #3 | G19: U1481A_4R3_64_65_QRND7997511.raw #1 | H19: 27.394 | I19: 28.208 | J19: 9.68 | K19: 9.46 | L19: 27.945 | M19: 3.19022 | N19: 17.1 | O19: 7.59 | P19: 0.226 | Q19: 27.922 | R19: 3.19279 | S19: 0.255 | T19: 27.879 | U19: 3.19766 | V19: 9.723 | W19: 1.934 | X19: 402.4 | Y19: 1 | Z19: 0 | AA19: No
A20: Yes | C20: Transparent | D20: 4 | E20: [29.105 - 29.703] | F20: Area List #3 | G20: U1481A_4R3_64_65_QRND7997511.raw #1 | H20: 29.105 | I20: 29.703 | J20: 7.62 | K20: 8.09 | L20: 29.114 | M20: 3.0647 | N20: 7.87 | O20: 0.24 | P20: 0 | Q20: 0 | R20: Infinity | S20: -0.561 | T20: 29.436 | U20: 3.03195 | V20: 4.562 | W20: -0.1346 | X20: 0 | Y20: 1 | Z20: 0 | AA20: No
A21: Yes | C21: Transparent | D21: 1 | E21: [19.407 - 20.403] | F21: Area List #3 | G21: U1481A_5R1_123_124_QRND7998171.raw #1 | H21: 19.407 | I21: 20.403 | J21: 7.95 | K21: 8.55 | L21: 19.875 | M21: 4.46363 | N21: 13 | O21: 4.74 | P21: 0.284 | Q21: 19.873 | R21: 4.46394 | S21: 0.328 | T21: 19.901 | U21: 4.45777 | V21: 9.772 | W21: 1.555 | X21: 316 | Y21: 1 | Z21: 0 | AA21: No
A22: Yes | C22: Transparent | D22: 2 | E22: [26.298 - 26.996] | F22: Area List #3 | G22: U1481A_5R1_123_124_QRND7998171.raw #1 | H22: 26.298 | I22: 26.996 | J22: 9.73 | K22: 14.4 | L22: 26.696 | M22: 3.33654 | N22: 76.2 | O22: 63.8 | P22: 0.142 | Q22: 26.704 | R22: 3.33562 | S22: 0.169 | T22: 26.715 | U22: 3.33426 | V22: 19.17 | W22: 10.75 | X22: 639 | Y22: 1 | Z22: 0 | AA22: No
A23: Yes | C23: Transparent | D23: 3 | E23: [27.394 - 28.208] | F23: Area List #3 | G23: U1481A_5R1_123_124_QRND7998171.raw #1 | H23: 27.394 | I23: 28.208 | J23: 9.65 | K23: 9.52 | L23: 27.961 | M23: 3.18841 | N23: 14.9 | O23: 5.35 | P23: 0.228 | Q23: 27.943 | R23: 3.19042 | S23: 0.272 | T23: 27.886 | U23: 3.19685 | V23: 9.255 | W23: 1.453 | X23: 398.3 | Y23: 1 | Z23: 0 | AA23: No
A24: Yes | C24: Transparent | D24: 4 | E24: [29.105 - 29.703] | F24: Area List #3 | G24: U1481A_5R1_123_124_QRND7998171.raw #1 | H24: 29.105 | I24: 29.703 | J24: 7.88 | K24: 9.6 | L24: 29.512 | M24: 3.02428 | N24: 16.7 | O24: 7.6 | P24: 0.156 | Q24: 29.511 | R24: 3.02443 | S24: 0.162 | T24: 29.516 | U24: 3.02388 | V24: 6.457 | W24: 1.233 | X24: 586.3 | Y24: 1 | Z24: 0 | AA24: No
A25: Yes | C25: Transparent | D25: 1 | E25: [19.407 - 20.403] | F25: Area List #3 | G25: U1481A_6R3_2_3_QRND7999161.raw #1 | H25: 19.407 | I25: 20.403 | J25: 8.17 | K25: 8.87 | L25: 19.851 | M25: 4.46883 | N25: 14.2 | O25: 5.76 | P25: 0.289 | Q25: 19.853 | R25: 4.46842 | S25: 0.343 | T25: 19.877 | U25: 4.46313 | V25: 10.47 | W25: 1.977 | X25: 310.6 | Y25: 1 | Z25: 0 | AA25: No
A26: Yes | C26: Transparent | D26: 2 | E26: [27.394 - 28.208] | F26: Area List #3 | G26: U1481A_6R3_2_3_QRND7999161.raw #1 | H26: 27.394 | I26: 28.208 | J26: 9.58 | K26: 9.43 | L26: 27.932 | M26: 3.19173 | N26: 15.1 | O26: 5.6 | P26: 0.23 | Q26: 27.906 | R26: 3.19456 | S26: 0.261 | T26: 27.861 | U26: 3.1996 | V26: 9.194 | W26: 1.463 | X26: 395.8 | Y26: 1 | Z26: 0 | AA26: No
A27: Yes | C27: Transparent | D27: 3 | E27: [26.298 - 26.996] | F27: Area List #3 | G27: U1481A_6R3_2_3_QRND7999161.raw #1 | H27: 26.298 | I27: 26.996 | J27: 9.96 | K27: 12.4 | L27: 26.668 | M27: 3.34008 | N27: 76.4 | O27: 65.1 | P27: 0.144 | Q27: 26.676 | R27: 3.33906 | S27: 0.169 | T27: 26.685 | U27: 3.33789 | V27: 18.81 | W27: 11 | X27: 631 | Y27: 1 | Z27: 0 | AA27: No
A28: Yes | C28: Transparent | D28: 4 | E28: [29.105 - 29.703] | F28: Area List #3 | G28: U1481A_6R3_2_3_QRND7999161.raw #1 | H28: 29.105 | I28: 29.703 | J28: 8.08 | K28: 9.33 | L28: 29.481 | M28: 3.02745 | N28: 16 | O28: 7.14 | P28: 0.168 | Q28: 29.484 | R28: 3.02715 | S28: 0.171 | T28: 29.487 | U28: 3.02683 | V28: 6.429 | W28: 1.223 | X28: 543.9 | Y28: 1 | Z28: 0 | AA28: No
A29: Yes | C29: Transparent | D29: 1 | E29: [19.407 - 20.403] | F29: Area List #3 | G29: U1481A_6R5_1_2_QRND7999271.raw #1 | H29: 19.407 | I29: 20.403 | J29: 7.85 | K29: 8.58 | L29: 19.872 | M29: 4.46421 | N29: 13.4 | O29: 5.26 | P29: 0.277 | Q29: 19.858 | R29: 4.46736 | S29: 0.315 | T29: 19.888 | U29: 4.46065 | V29: 9.839 | W29: 1.655 | X29: 324.1 | Y29: 1 | Z29: 0 | AA29: No
A30: Yes | C30: Transparent | D30: 2 | E30: [26.298 - 26.996] | F30: Area List #3 | G30: U1481A_6R5_1_2_QRND7999271.raw #1 | H30: 26.298 | I30: 26.996 | J30: 9.79 | K30: 13.5 | L30: 26.681 | M30: 3.33837 | N30: 89.9 | O30: 78.1 | P30: 0.141 | Q30: 26.689 | R30: 3.33744 | S30: 0.17 | T30: 26.702 | U30: 3.33589 | V30: 21.42 | W30: 13.28 | X30: 642.4 | Y30: 1 | Z30: 0 | AA30: No
A31: Yes | C31: Transparent | D31: 3 | E31: [27.394 - 28.208] | F31: Area List #3 | G31: U1481A_6R5_1_2_QRND7999271.raw #1 | H31: 27.394 | I31: 28.208 | J31: 9.43 | K31: 9.55 | L31: 27.957 | M31: 3.1889 | N31: 15 | O31: 5.49 | P31: 0.268 | Q31: 27.918 | R31: 3.19327 | S31: 0.31 | T31: 27.855 | U31: 3.20028 | V31: 9.422 | W31: 1.701 | X31: 339.5 | Y31: 1 | Z31: 0 | AA31: No
A32: Yes | C32: Transparent | D32: 4 | E32: [29.105 - 29.703] | F32: Area List #3 | G32: U1481A_6R5_1_2_QRND7999271.raw #1 | H32: 29.105 | I32: 29.703 | J32: 7.79 | K32: 9.21 | L32: 29.505 | M32: 3.025 | N32: 19.7 | O32: 11 | P32: 0.145 | Q32: 29.508 | R32: 3.02466 | S32: 0.15 | T32: 29.512 | U32: 3.02433 | V32: 6.727 | W32: 1.646 | X32: 628.8 | Y32: 1 | Z32: 0 | AA32: No
A33: Yes | C33: Transparent | D33: 1 | E33: [19.407 - 20.403] | F33: Area List #3 | G33: U1481A_7R2_51_52_QRND8000131.raw #1 | H33: 19.407 | I33: 20.403 | J33: 6.37 | K33: 6.6 | L33: 19.863 | M33: 4.46622 | N33: 10.2 | O33: 3.68 | P33: 0.264 | Q33: 19.856 | R33: 4.46772 | S33: 0.288 | T33: 19.877 | U33: 4.4632 | V33: 7.522 | W33: 1.062 | X33: 339.5 | Y33: 1 | Z33: 0 | AA33: No
A34: Yes | C34: Transparent | D34: 2 | E34: [26.298 - 26.996] | F34: Area List #3 | G34: U1481A_7R2_51_52_QRND8000131.raw #1 | H34: 26.298 | I34: 26.996 | J34: 9.03 | K34: 12.7 | L34: 26.67 | M34: 3.33982 | N34: 144 | O34: 133 | P34: 0.137 | Q34: 26.678 | R34: 3.33885 | S34: 0.162 | T34: 26.689 | U34: 3.33744 | V34: 29.08 | W34: 21.51 | X34: 663.5 | Y34: 1 | Z34: 0 | AA34: No
A35: Yes | C35: Transparent | D35: 3 | E35: [27.394 - 28.208] | F35: Area List #3 | G35: U1481A_7R2_51_52_QRND8000131.raw #1 | H35: 27.394 | I35: 28.208 | J35: 8.15 | K35: 8.57 | L35: 27.947 | M35: 3.18998 | N35: 18.7 | O35: 10.3 | P35: 0.227 | Q35: 27.918 | R35: 3.19321 | S35: 0.258 | T35: 27.878 | U35: 3.19769 | V35: 9.454 | W35: 2.653 | X35: 401.2 | Y35: 1 | Z35: 0 | AA35: No
A36: Yes | C36: Transparent | D36: 4 | E36: [29.105 - 29.703] | F36: Area List #3 | G36: U1481A_7R2_51_52_QRND8000131.raw #1 | H36: 29.105 | I36: 29.703 | J36: 6.35 | K36: 8.18 | L36: 29.491 | M36: 3.02643 | N36: 18.8 | O36: 11.2 | P36: 0.174 | Q36: 29.493 | R36: 3.02621 | S36: 0.178 | T36: 29.494 | U36: 3.02613 | V36: 6.34 | W36: 1.998 | X36: 525.4 | Y36: 1 | Z36: 0 | AA36: No
A37: Yes | C37: Transparent | D37: 1 | E37: [19.407 - 20.403] | F37: Area List #3 | G37: U1481A_7R2_102_103_QRND7999901.raw #1 | H37: 19.407 | I37: 20.403 | J37: 8.07 | K37: 8.73 | L37: 19.846 | M37: 4.4701 | N37: 13.6 | O37: 5.28 | P37: 0.267 | Q37: 19.845 | R37: 4.4703 | S37: 0.322 | T37: 19.871 | U37: 4.46459 | V37: 10.07 | W37: 1.703 | X37: 335.4 | Y37: 1 | Z37: 0 | AA37: No
A38: Yes | C38: Transparent | D38: 2 | E38: [26.298 - 26.996] | F38: Area List #3 | G38: U1481A_7R2_102_103_QRND7999901.raw #1 | H38: 26.298 | I38: 26.996 | J38: 10.3 | K38: 13.4 | L38: 26.668 | M38: 3.33997 | N38: 83 | O38: 71.1 | P38: 0.145 | Q38: 26.677 | R38: 3.33895 | S38: 0.173 | T38: 26.691 | U38: 3.33724 | V38: 20.59 | W38: 12.34 | X38: 626.3 | Y38: 1 | Z38: 0 | AA38: No
A39: Yes | C39: Transparent | D39: 3 | E39: [27.394 - 28.208] | F39: Area List #3 | G39: U1481A_7R2_102_103_QRND7999901.raw #1 | H39: 27.394 | I39: 28.208 | J39: 9.96 | K39: 9.58 | L39: 27.934 | M39: 3.19143 | N39: 15.6 | O39: 5.89 | P39: 0.237 | Q39: 27.916 | R39: 3.19352 | S39: 0.267 | T39: 27.871 | U39: 3.19858 | V39: 9.521 | W39: 1.569 | X39: 383.3 | Y39: 1 | Z39: 0 | AA39: No
A40: Yes | C40: Transparent | D40: 4 | E40: [29.105 - 29.703] | F40: Area List #3 | G40: U1481A_7R2_102_103_QRND7999901.raw #1 | H40: 29.105 | I40: 29.703 | J40: 8.18 | K40: 9.4 | L40: 29.483 | M40: 3.02718 | N40: 16.2 | O40: 7.21 | P40: 0.163 | Q40: 29.486 | R40: 3.02693 | S40: 0.165 | T40: 29.492 | U40: 3.02636 | V40: 6.442 | W40: 1.188 | X40: 559.8 | Y40: 1 | Z40: 0 | AA40: No
A41: Yes | C41: Transparent | D41: 1 | E41: [19.407 - 20.403] | F41: Area List #3 | G41: U1481A_7R3_42_43_QRND7999971.raw #1 | H41: 19.407 | I41: 20.403 | J41: 8.41 | K41: 9.01 | L41: 19.859 | M41: 4.46723 | N41: 14.4 | O41: 5.73 | P41: 0.275 | Q41: 19.861 | R41: 4.46666 | S41: 0.328 | T41: 19.882 | U41: 4.46203 | V41: 10.56 | W41: 1.875 | X41: 326.3 | Y41: 1 | Z41: 0 | AA41: No
A42: Yes | C42: Transparent | D42: 2 | E42: [26.298 - 26.996] | F42: Area List #3 | G42: U1481A_7R3_42_43_QRND7999971.raw #1 | H42: 26.298 | I42: 26.996 | J42: 9.92 | K42: 12.4 | L42: 26.67 | M42: 3.33976 | N42: 78.2 | O42: 66.9 | P42: 0.144 | Q42: 26.679 | R42: 3.33866 | S42: 0.168 | T42: 26.687 | U42: 3.33765 | V42: 19.04 | W42: 11.24 | X42: 631.3 | Y42: 1 | Z42: 0 | AA42: No
A43: Yes | C43: Transparent | D43: 3 | E43: [27.394 - 28.208] | F43: Area List #3 | G43: U1481A_7R3_42_43_QRND7999971.raw #1 | H43: 27.394 | I43: 28.208 | J43: 9.62 | K43: 9.54 | L43: 27.944 | M43: 3.19029 | N43: 14.6 | O43: 5.06 | P43: 0.274 | Q43: 27.901 | R43: 3.19511 | S43: 0.289 | T43: 27.862 | U43: 3.1995 | V43: 9.257 | W43: 1.462 | X43: 332.5 | Y43: 1 | Z43: 0 | AA43: No
A44: Yes | C44: Transparent | D44: 4 | E44: [29.105 - 29.703] | F44: Area List #3 | G44: U1481A_7R3_42_43_QRND7999971.raw #1 | H44: 29.105 | I44: 29.703 | J44: 8.12 | K44: 9.56 | L44: 29.489 | M44: 3.0266 | N44: 15.2 | O44: 6.15 | P44: 0.169 | Q44: 29.485 | R44: 3.02699 | S44: 0.174 | T44: 29.49 | U44: 3.02653 | V44: 6.354 | W44: 1.071 | X44: 541.7 | Y44: 1 | Z44: 0 | AA44: No
A45: Yes | C45: Transparent | D45: 1 | E45: [19.407 - 20.403] | F45: Area List #3 | G45: U1481A_7R3_89_90_QRND7999981.raw #1 | H45: 19.407 | I45: 20.403 | J45: 5.51 | K45: 5.83 | L45: 19.864 | M45: 4.46614 | N45: 8.09 | O45: 2.43 | P45: 0.264 | Q45: 19.841 | R45: 4.47125 | S45: 0.258 | T45: 19.856 | U45: 4.4679 | V45: 6.277 | W45: 0.629 | X45: 339.4 | Y45: 1 | Z45: 0 | AA45: No
A46: Yes | C46: Transparent | D46: 2 | E46: [26.298 - 26.996] | F46: Area List #3 | G46: U1481A_7R3_89_90_QRND7999981.raw #1 | H46: 26.298 | I46: 26.996 | J46: 9.88 | K46: 14.2 | L46: 26.668 | M46: 3.34006 | N46: 272 | O46: 260 | P46: 0.131 | Q46: 26.674 | R46: 3.33927 | S46: 0.15 | T46: 26.68 | U46: 3.33855 | V46: 47.38 | W46: 39 | X46: 693 | Y46: 1 | Z46: 0 | AA46: No
A47: Yes | C47: Transparent | D47: 3 | E47: [27.394 - 27.992] | F47: Area List #3 | G47: U1481A_7R3_89_90_QRND7999981.raw #1 | H47: 27.394 | I47: 27.992 | J47: 12 | K47: 21 | L47: 27.495 | M47: 3.24139 | N47: 34.4 | O47: 20.9 | P47: 0.111 | Q47: 27.507 | R47: 3.24004 | S47: 0.051 | T47: 27.324 | U47: 3.26128 | V47: 10.92 | W47: 1.064 | X47: 818.3 | Y47: 1 | Z47: 0 | AA47: No
A48: Yes | C48: Transparent | D48: 4 | E48: [29.105 - 29.703] | F48: Area List #3 | G48: U1481A_7R3_89_90_QRND7999981.raw #1 | H48: 29.105 | I48: 29.703 | J48: 5.51 | K48: 8.83 | L48: 29.512 | M48: 3.02434 | N48: 25.5 | O48: 17.8 | P48: 0.145 | Q48: 29.513 | R48: 3.02418 | S48: 0.156 | T48: 29.521 | U48: 3.02342 | V48: 7.053 | W48: 2.766 | X48: 629.6 | Y48: 1 | Z48: 0 | AA48: No
A49: Yes | C49: Transparent | D49: 1 | E49: [19.407 - 20.403] | F49: Area List #3 | G49: U1481A_8R1_17_18_QRND8000231.raw #1 | H49: 19.407 | I49: 20.403 | J49: 8.15 | K49: 8.78 | L49: 19.881 | M49: 4.46215 | N49: 13.7 | O49: 5.24 | P49: 0.285 | Q49: 19.87 | R49: 4.46475 | S49: 0.33 | T49: 19.895 | U49: 4.45926 | V49: 10.16 | W49: 1.731 | X49: 314.8 | Y49: 1 | Z49: 0 | AA49: No
A50: Yes | C50: Transparent | D50: 2 | E50: [26.298 - 26.996] | F50: Area List #3 | G50: U1481A_8R1_17_18_QRND8000231.raw #1 | H50: 26.298 | I50: 26.996 | J50: 9.94 | K50: 14 | L50: 26.694 | M50: 3.3368 | N50: 75.4 | O50: 63.1 | P50: 0.146 | Q50: 26.7 | R50: 3.33608 | S50: 0.171 | T50: 26.71 | U50: 3.33486 | V50: 19.15 | W50: 10.79 | X50: 623.2 | Y50: 1 | Z50: 0 | AA50: No
A51: Yes | C51: Transparent | D51: 3 | E51: [27.394 - 28.208] | F51: Area List #3 | G51: U1481A_8R1_17_18_QRND8000231.raw #1 | H51: 27.394 | I51: 28.208 | J51: 9.67 | K51: 9.6 | L51: 27.957 | M51: 3.18883 | N51: 15 | O51: 5.41 | P51: 0.26 | Q51: 27.927 | R51: 3.19221 | S51: 0.293 | T51: 27.873 | U51: 3.19831 | V51: 9.43 | W51: 1.588 | X51: 349.5 | Y51: 1 | Z51: 0 | AA51: No
A52: Yes | C52: Transparent | D52: 4 | E52: [29.105 - 29.703] | F52: Area List #3 | G52: U1481A_8R1_17_18_QRND8000231.raw #1 | H52: 29.105 | I52: 29.703 | J52: 8.1 | K52: 9.23 | L52: 29.5 | M52: 3.02553 | N52: 14.7 | O52: 5.81 | P52: 0.151 | Q52: 29.5 | R52: 3.02552 | S52: 0.158 | T52: 29.504 | U52: 3.02507 | V52: 6.097 | W52: 0.917 | X52: 602.6 | Y52: 1 | Z52: 0 | AA52: No
A53: Yes | C53: Transparent | D53: 1 | E53: [19.407 - 20.403] | F53: Area List #3 | G53: U1481A_9R2_99_100_QRND8001021.raw #1 | H53: 19.407 | I53: 20.403 | J53: 6.34 | K53: 6.59 | L53: 19.87 | M53: 4.4646 | N53: 9.75 | O53: 3.29 | P53: 0.292 | Q53: 19.859 | R53: 4.46709 | S53: 0.317 | T53: 19.889 | U53: 4.46038 | V53: 7.483 | W53: 1.043 | X53: 307.3 | Y53: 1 | Z53: 0 | AA53: No
A54: Yes | C54: Transparent | D54: 2 | E54: [26.298 - 26.996] | F54: Area List #3 | G54: U1481A_9R2_99_100_QRND8001021.raw #1 | H54: 26.298 | I54: 26.996 | J54: 9.71 | K54: 15.5 | L54: 26.668 | M54: 3.34001 | N54: 179 | O54: 167 | P54: 0.136 | Q54: 26.676 | R54: 3.33909 | S54: 0.16 | T54: 26.689 | U54: 3.33746 | V54: 35.42 | W54: 26.64 | X54: 669.1 | Y54: 1 | Z54: 0 | AA54: No
A55: Yes | C55: Transparent | D55: 3 | E55: [27.394 - 28.208] | F55: Area List #3 | G55: U1481A_9R2_99_100_QRND8001021.raw #1 | H55: 27.394 | I55: 28.208 | J55: 9.88 | K55: 9.13 | L55: 27.949 | M55: 3.18976 | N55: 29 | O55: 19.7 | P55: 0.164 | Q55: 27.951 | R55: 3.18957 | S55: 0.22 | T55: 27.88 | U55: 3.19751 | V55: 12.07 | W55: 4.332 | X55: 553.1 | Y55: 1 | Z55: 0 | AA55: No
A56: Yes | C56: Transparent | D56: 4 | E56: [29.105 - 29.703] | F56: Area List #3 | G56: U1481A_9R2_99_100_QRND8001021.raw #1 | H56: 29.105 | I56: 29.703 | J56: 6.42 | K56: 8.2 | L56: 29.494 | M56: 3.02613 | N56: 23.3 | O56: 15.7 | P56: 0.157 | Q56: 29.497 | R56: 3.02576 | S56: 0.166 | T56: 29.501 | U56: 3.02541 | V56: 6.976 | W56: 2.603 | X56: 582.3 | Y56: 1 | Z56: 0 | AA56: No
A57: Yes | C57: Transparent | D57: 1 | E57: [19.407 - 20.403] | F57: Area List #3 | G57: U1481A_9R3_85_86_QRND8001031.raw #1 | H57: 19.407 | I57: 20.403 | J57: 6.23 | K57: 6.58 | L57: 19.899 | M57: 4.45836 | N57: 9.6 | O57: 3.19 | P57: 0.265 | Q57: 19.881 | R57: 4.46232 | S57: 0.303 | T57: 19.901 | U57: 4.45784 | V57: 7.35 | W57: 0.9669 | X57: 338.6 | Y57: 1 | Z57: 0 | AA57: No
A58: Yes | C58: Transparent | D58: 2 | E58: [26.298 - 26.996] | F58: Area List #3 | G58: U1481A_9R3_85_86_QRND8001031.raw #1 | H58: 26.298 | I58: 26.996 | J58: 9.12 | K58: 18.2 | L58: 26.699 | M58: 3.33621 | N58: 155 | O58: 141 | P58: 0.138 | Q58: 26.705 | R58: 3.33544 | S58: 0.165 | T58: 26.721 | U58: 3.33349 | V58: 32.77 | W58: 23.23 | X58: 656 | Y58: 1 | Z58: 0 | AA58: No
A59: Yes | C59: Transparent | D59: 3 | E59: [27.394 - 28.208] | F59: Area List #3 | G59: U1481A_9R3_85_86_QRND8001031.raw #1 | H59: 27.394 | I59: 28.208 | J59: 8.26 | K59: 9.15 | L59: 27.978 | M59: 3.18649 | N59: 21 | O59: 12.1 | P59: 0.182 | Q59: 27.974 | R59: 3.18703 | S59: 0.256 | T59: 27.888 | U59: 3.19657 | V59: 10.18 | W59: 3.099 | X59: 500.9 | Y59: 1 | Z59: 0 | AA59: No
A60: Yes | C60: Transparent | D60: 4 | E60: [29.105 - 29.703] | F60: Area List #3 | G60: U1481A_9R3_85_86_QRND8001031.raw #1 | H60: 29.105 | I60: 29.703 | J60: 6.16 | K60: 8.62 | L60: 29.516 | M60: 3.02392 | N60: 21.5 | O60: 13.6 | P60: 0.165 | Q60: 29.52 | R60: 3.0235 | S60: 0.165 | T60: 29.522 | U60: 3.0233 | V60: 6.66 | W60: 2.241 | X60: 554.9 | Y60: 1 | Z60: 0 | AA60: No
A61: Yes | C61: Transparent | D61: 1 | E61: [19.407 - 20.403] | F61: Area List #3 | G61: U1481A_6R3_2_3_QRND7999161.raw #1 | H61: 19.407 | I61: 20.403 | J61: 8.17 | K61: 8.87 | L61: 19.851 | M61: 4.46883 | N61: 14.2 | O61: 5.76 | P61: 0.289 | Q61: 19.853 | R61: 4.46842 | S61: 0.343 | T61: 19.877 | U61: 4.46313 | V61: 10.47 | W61: 1.977 | X61: 310.6 | Y61: 1 | Z61: 0 | AA61: No
A62: Yes | C62: Transparent | D62: 2 | E62: [26.298 - 26.996] | F62: Area List #3 | G62: U1481A_6R3_2_3_QRND7999161.raw #1 | H62: 26.298 | I62: 26.996 | J62: 9.96 | K62: 12.4 | L62: 26.668 | M62: 3.34008 | N62: 76.4 | O62: 65.1 | P62: 0.144 | Q62: 26.676 | R62: 3.33906 | S62: 0.169 | T62: 26.685 | U62: 3.33789 | V62: 18.81 | W62: 11 | X62: 631 | Y62: 1 | Z62: 0 | AA62: No
A63: Yes | C63: Transparent | D63: 3 | E63: [27.394 - 28.208] | F63: Area List #3 | G63: U1481A_6R3_2_3_QRND7999161.raw #1 | H63: 27.394 | I63: 28.208 | J63: 9.58 | K63: 9.43 | L63: 27.932 | M63: 3.19173 | N63: 15.1 | O63: 5.6 | P63: 0.23 | Q63: 27.906 | R63: 3.19456 | S63: 0.261 | T63: 27.861 | U63: 3.1996 | V63: 9.194 | W63: 1.463 | X63: 395.8 | Y63: 1 | Z63: 0 | AA63: No
A64: Yes | C64: Transparent | D64: 4 | E64: [29.105 - 29.703] | F64: Area List #3 | G64: U1481A_6R3_2_3_QRND7999161.raw #1 | H64: 29.105 | I64: 29.703 | J64: 8.08 | K64: 9.33 | L64: 29.481 | M64: 3.02745 | N64: 16 | O64: 7.14 | P64: 0.168 | Q64: 29.484 | R64: 3.02715 | S64: 0.171 | T64: 29.487 | U64: 3.02683 | V64: 6.429 | W64: 1.223 | X64: 543.9 | Y64: 1 | Z64: 0 | AA64: No
A65: Yes | C65: Transparent | D65: 1 | E65: [19.407 - 20.403] | F65: Area List #3 | G65: U1481A_10R1_51_52_QRND8002151.raw #1 | H65: 19.407 | I65: 20.403 | J65: 6.9 | K65: 7.48 | L65: 19.886 | M65: 4.4612 | N65: 10.3 | O65: 3.1 | P65: 0.283 | Q65: 19.873 | R65: 4.46404 | S65: 0.32 | T65: 19.908 | U65: 4.45618 | V65: 8.157 | W65: 0.9919 | X65: 316.7 | Y65: 1 | Z65: 0 | AA65: No
A66: Yes | C66: Transparent | D66: 2 | E66: [26.298 - 26.996] | F66: Area List #3 | G66: U1481A_10R1_51_52_QRND8002151.raw #1 | H66: 26.298 | I66: 26.996 | J66: 10 | K66: 15.2 | L66: 26.682 | M66: 3.3383 | N66: 175 | O66: 162 | P66: 0.131 | Q66: 26.688 | R66: 3.33755 | S66: 0.152 | T66: 26.693 | U66: 3.33692 | V66: 33.43 | W66: 24.62 | X66: 690.5 | Y66: 1 | Z66: 0 | AA66: No
A67: Yes | C67: Transparent | D67: 3 | E67: [27.394 - 28.208] | F67: Area List #3 | G67: U1481A_10R1_51_52_QRND8002151.raw #1 | H67: 27.394 | I67: 28.208 | J67: 9.64 | K67: 9.28 | L67: 27.98 | M67: 3.18629 | N67: 22.3 | O67: 12.9 | P67: 0.452 | Q67: 27.857 | R67: 3.20007 | S67: 0.363 | T67: 27.846 | U67: 3.20138 | V67: 12.37 | W67: 4.673 | X67: 201 | Y67: 1 | Z67: 0 | AA67: No
A68: Yes | C68: Transparent | D68: 4 | E68: [29.105 - 29.703] | F68: Area List #3 | G68: U1481A_10R1_51_52_QRND8002151.raw #1 | H68: 29.105 | I68: 29.703 | J68: 6.59 | K68: 7.23 | L68: 29.5 | M68: 3.02546 | N68: 8.73 | O68: 1.71 | P68: 0.157 | Q68: 29.508 | R68: 3.02471 | S68: 0.127 | T68: 29.529 | U68: 3.02265 | V68: 4.348 | W68: 0.2179 | X68: 579.7 | Y68: 1 | Z68: 0 | AA68: No
A69: Yes | C69: Transparent | D69: 1 | E69: [19.407 - 20.403] | F69: Area List #3 | G69: U1481A_10R3_70_71_QRND800208.raw #1 | H69: 19.407 | I69: 20.403 | J69: 8.15 | K69: 8.95 | L69: 19.866 | M69: 4.46569 | N69: 14.7 | O69: 6.23 | P69: 0.279 | Q69: 19.843 | R69: 4.47069 | S69: 0.333 | T69: 19.888 | U69: 4.46066 | V69: 10.59 | W69: 2.079 | X69: 321.2 | Y69: 1 | Z69: 0 | AA69: No
A70: Yes | C70: Transparent | D70: 2 | E70: [26.298 - 26.996] | F70: Area List #3 | G70: U1481A_10R3_70_71_QRND800208.raw #1 | H70: 26.298 | I70: 26.996 | J70: 9.75 | K70: 12.4 | L70: 26.677 | M70: 3.33896 | N70: 80.9 | O70: 69.7 | P70: 0.14 | Q70: 26.683 | R70: 3.33824 | S70: 0.166 | T70: 26.691 | U70: 3.33718 | V70: 19.28 | W70: 11.56 | X70: 646.1 | Y70: 1 | Z70: 0 | AA70: No
A71: Yes | C71: Transparent | D71: 3 | E71: [27.394 - 28.208] | F71: Area List #3 | G71: U1481A_10R3_70_71_QRND800208.raw #1 | H71: 27.394 | I71: 28.208 | J71: 9.47 | K71: 9.23 | L71: 27.934 | M71: 3.19151 | N71: 14.7 | O71: 5.41 | P71: 0.262 | Q71: 27.906 | R71: 3.19455 | S71: 0.284 | T71: 27.866 | U71: 3.19914 | V71: 9.14 | W71: 1.534 | X71: 347.7 | Y71: 1 | Z71: 0 | AA71: No
A72: Yes | C72: Transparent | D72: 4 | E72: [29.105 - 29.703] | F72: Area List #3 | G72: U1481A_10R3_70_71_QRND800208.raw #1 | H72: 29.105 | I72: 29.703 | J72: 7.84 | K72: 8.78 | L72: 29.485 | M72: 3.02704 | N72: 13.5 | O72: 5.11 | P72: 0.142 | Q72: 29.485 | R72: 3.02699 | S72: 0.148 | T72: 29.494 | U72: 3.02613 | V72: 5.726 | W72: 0.759 | X72: 642.1 | Y72: 1 | Z72: 0 | AA72: No
A73: Yes | C73: Transparent | D73: 1 | E73: [19.407 - 20.403] | F73: Area List #3 | G73: U1481A_11R1_131_132_QRND8002491.raw #1 | H73: 19.407 | I73: 20.403 | J73: 6.93 | K73: 7.5 | L73: 19.896 | M73: 4.45887 | N73: 11.6 | O73: 4.34 | P73: 0.282 | Q73: 19.892 | R73: 4.45985 | S73: 0.313 | T73: 19.919 | U73: 4.45377 | V73: 8.549 | W73: 1.357 | X73: 318 | Y73: 1 | Z73: 0 | AA73: No
A74: Yes | C74: Transparent | D74: 2 | E74: [26.298 - 26.996] | F74: Area List #3 | G74: U1481A_11R1_131_132_QRND8002491.raw #1 | H74: 26.298 | I74: 26.996 | J74: 9.28 | K74: 17.6 | L74: 26.715 | M74: 3.33423 | N74: 127 | O74: 113 | P74: 0.136 | Q74: 26.721 | R74: 3.33353 | S74: 0.156 | T74: 26.731 | U74: 3.33225 | V74: 27.05 | W74: 17.66 | X74: 667.3 | Y74: 1 | Z74: 0 | AA74: No
A75: Yes | C75: Transparent | D75: 3 | E75: [27.394 - 28.208] | F75: Area List #3 | G75: U1481A_11R1_131_132_QRND8002491.raw #1 | H75: 27.394 | I75: 28.208 | J75: 8.55 | K75: 8.95 | L75: 27.987 | M75: 3.18549 | N75: 15.8 | O75: 6.95 | P75: 0.23 | Q75: 27.96 | R75: 3.18853 | S75: 0.273 | T75: 27.896 | U75: 3.1957 | V75: 9.016 | W75: 1.896 | X75: 395.9 | Y75: 1 | Z75: 0 | AA75: No
A76: Yes | C76: Transparent | D76: 4 | E76: [29.105 - 29.703] | F76: Area List #3 | G76: U1481A_11R1_131_132_QRND8002491.raw #1 | H76: 29.105 | I76: 29.703 | J76: 6.78 | K76: 9.12 | L76: 29.539 | M76: 3.02161 | N76: 15.7 | O76: 7.26 | P76: 0.152 | Q76: 29.54 | R76: 3.02155 | S76: 0.143 | T76: 29.557 | U76: 3.01977 | V76: 5.787 | W76: 1.035 | X76: 600 | Y76: 1 | Z76: 0 | AA76: No
A77: Yes | C77: Transparent | D77: 1 | E77: [19.407 - 20.403] | F77: Area List #3 | G77: U1481A_12R2_38_39_QRND8002951.raw #1 | H77: 19.407 | I77: 20.403 | J77: 7.74 | K77: 8.53 | L77: 19.864 | M77: 4.46603 | N77: 14.1 | O77: 6.01 | P77: 0.283 | Q77: 19.856 | R77: 4.46778 | S77: 0.32 | T77: 19.88 | U77: 4.46253 | V77: 10.03 | W77: 1.923 | X77: 316.8 | Y77: 1 | Z77: 0 | AA77: No
A78: Yes | C78: Transparent | D78: 2 | E78: [26.298 - 26.996] | F78: Area List #3 | G78: U1481A_12R2_38_39_QRND8002951.raw #1 | H78: 26.298 | I78: 26.996 | J78: 9.78 | K78: 13.3 | L78: 26.679 | M78: 3.33873 | N78: 103 | O78: 90.8 | P78: 0.14 | Q78: 26.685 | R78: 3.33798 | S78: 0.166 | T78: 26.696 | U78: 3.33661 | V78: 23.14 | W78: 15.1 | X78: 646 | Y78: 1 | Z78: 0 | AA78: No
A79: Yes | C79: Transparent | D79: 3 | E79: [27.394 - 28.208] | F79: Area List #3 | G79: U1481A_12R2_38_39_QRND8002951.raw #1 | H79: 27.394 | I79: 28.208 | J79: 9.15 | K79: 9.33 | L79: 27.944 | M79: 3.1903 | N79: 16.1 | O79: 6.81 | P79: 0.252 | Q79: 27.913 | R79: 3.19377 | S79: 0.276 | T79: 27.872 | U79: 3.19844 | V79: 9.392 | W79: 1.877 | X79: 361.6 | Y79: 1 | Z79: 0 | AA79: No
A80: Yes | C80: Transparent | D80: 4 | E80: [29.105 - 29.703] | F80: Area List #3 | G80: U1481A_12R2_38_39_QRND8002951.raw #1 | H80: 29.105 | I80: 29.703 | J80: 7.52 | K80: 8.09 | L80: 29.471 | M80: 3.02844 | N80: 11.9 | O80: 3.99 | P80: 0.149 | Q80: 29.472 | R80: 3.02832 | S80: 0.143 | T80: 29.489 | U80: 3.02658 | V80: 5.237 | W80: 0.5698 | X80: 614.2 | Y80: 1 | Z80: 0 | AA80: No
A81: Yes | C81: Transparent | D81: 1 | E81: [19.407 - 20.403] | F81: Area List #3 | G81: U1481A_13R1_6_7_QRND8003371.raw #1 | H81: 19.407 | I81: 20.403 | J81: 7.98 | K81: 8.64 | L81: 19.882 | M81: 4.46211 | N81: 13.1 | O81: 4.76 | P81: 0.282 | Q81: 19.862 | R81: 4.46651 | S81: 0.317 | T81: 19.906 | U81: 4.45664 | V81: 9.786 | W81: 1.507 | X81: 317.3 | Y81: 1 | Z81: 0 | AA81: No
A82: Yes | C82: Transparent | D82: 2 | E82: [26.298 - 26.996] | F82: Area List #3 | G82: U1481A_13R1_6_7_QRND8003371.raw #1 | H82: 26.298 | I82: 26.996 | J82: 9.87 | K82: 14.6 | L82: 26.696 | M82: 3.33655 | N82: 91.6 | O82: 79 | P82: 0.138 | Q82: 26.703 | R82: 3.33566 | S82: 0.162 | T82: 26.714 | U82: 3.33439 | V82: 21.32 | W82: 12.8 | X82: 657.1 | Y82: 1 | Z82: 0 | AA82: No
A83: Yes | C83: Transparent | D83: 3 | E83: [27.394 - 28.208] | F83: Area List #3 | G83: U1481A_13R1_6_7_QRND8003371.raw #1 | H83: 27.394 | I83: 28.208 | J83: 9.31 | K83: 9.46 | L83: 27.961 | M83: 3.18841 | N83: 15.6 | O83: 6.23 | P83: 0.231 | Q83: 27.945 | R83: 3.19026 | S83: 0.276 | T83: 27.874 | U83: 3.19814 | V83: 9.356 | W83: 1.718 | X83: 394.3 | Y83: 1 | Z83: 0 | AA83: No
A84: Yes | C84: Transparent | D84: 4 | E84: [29.105 - 29.703] | F84: Area List #3 | G84: U1481A_13R1_6_7_QRND8003371.raw #1 | H84: 29.105 | I84: 29.703 | J84: 7.95 | K84: 9.36 | L84: 29.513 | M84: 3.02419 | N84: 15.9 | O84: 7 | P84: 0.152 | Q84: 29.516 | R84: 3.02393 | S84: 0.158 | T84: 29.522 | U84: 3.02335 | V84: 6.282 | W84: 1.106 | X84: 598.7 | Y84: 1 | Z84: 0 | AA84: No
A85: Yes | C85: Transparent | D85: 1 | E85: [19.407 - 20.403] | F85: Area List #3 | G85: U1481A_14R1_126_127_QRND8004171.raw #1 | H85: 19.407 | I85: 20.403 | J85: 7.54 | K85: 8.29 | L85: 19.87 | M85: 4.46466 | N85: 13.1 | O85: 5.17 | P85: 0.293 | Q85: 19.852 | R85: 4.46863 | S85: 0.333 | T85: 19.883 | U85: 4.4619 | V85: 9.608 | W85: 1.722 | X85: 305.5 | Y85: 1 | Z85: 0 | AA85: No
A86: Yes | C86: Transparent | D86: 2 | E86: [26.298 - 26.996] | F86: Area List #3 | G86: U1481A_14R1_126_127_QRND8004171.raw #1 | H86: 26.298 | I86: 26.996 | J86: 9.88 | K86: 13.1 | L86: 26.671 | M86: 3.33966 | N86: 109 | O86: 97.1 | P86: 0.139 | Q86: 26.68 | R86: 3.33861 | S86: 0.165 | T86: 26.689 | U86: 3.33743 | V86: 24.01 | W86: 15.99 | X86: 651 | Y86: 1 | Z86: 0 | AA86: No
A87: Yes | C87: Transparent | D87: 3 | E87: [27.394 - 28.208] | F87: Area List #3 | G87: U1481A_14R1_126_127_QRND8004171.raw #1 | H87: 27.394 | I87: 28.208 | J87: 9.43 | K87: 9.4 | L87: 27.953 | M87: 3.18937 | N87: 17.1 | O87: 7.66 | P87: 0.216 | Q87: 27.924 | R87: 3.19258 | S87: 0.262 | T87: 27.868 | U87: 3.19883 | V87: 9.666 | W87: 2.006 | X87: 421.2 | Y87: 1 | Z87: 0 | AA87: No
A88: Yes | C88: Transparent | D88: 4 | E88: [29.105 - 29.703] | F88: Area List #3 | G88: U1481A_14R1_126_127_QRND8004171.raw #1 | H88: 29.105 | I88: 29.703 | J88: 7.46 | K88: 8.66 | L88: 29.489 | M88: 3.02656 | N88: 13.4 | O88: 5.21 | P88: 0.158 | Q88: 29.488 | R88: 3.02669 | S88: 0.162 | T88: 29.5 | U88: 3.02546 | V88: 5.665 | W88: 0.8462 | X88: 578.3 | Y88: 1 | Z88: 0 | AA88: No
A89: Yes | C89: Transparent | D89: 1 | E89: [19.407 - 20.403] | F89: Area List #3 | G89: U1481A_15R2_100_101_QRND8005151.raw #1 | H89: 19.407 | I89: 20.403 | J89: 7.58 | K89: 8.03 | L89: 19.852 | M89: 4.46862 | N89: 13.4 | O89: 5.64 | P89: 0.27 | Q89: 19.848 | R89: 4.46953 | S89: 0.316 | T89: 19.871 | U89: 4.46449 | V89: 9.56 | W89: 1.781 | X89: 332.3 | Y89: 1 | Z89: 0 | AA89: No
A90: Yes | C90: Transparent | D90: 2 | E90: [26.298 - 26.996] | F90: Area List #3 | G90: U1481A_15R2_100_101_QRND8005151.raw #1 | H90: 26.298 | I90: 26.996 | J90: 9.69 | K90: 12.8 | L90: 26.666 | M90: 3.34025 | N90: 100 | O90: 89.1 | P90: 0.141 | Q90: 26.674 | R90: 3.33929 | S90: 0.169 | T90: 26.686 | U90: 3.33778 | V90: 22.89 | W90: 15.06 | X90: 645.1 | Y90: 1 | Z90: 0 | AA90: No
A91: Yes | C91: Transparent | D91: 3 | E91: [27.394 - 28.208] | F91: Area List #3 | G91: U1481A_15R2_100_101_QRND8005151.raw #1 | H91: 27.394 | I91: 28.208 | J91: 9.21 | K91: 9.08 | L91: 27.931 | M91: 3.19182 | N91: 15.7 | O91: 6.56 | P91: 0.26 | Q91: 27.904 | R91: 3.19486 | S91: 0.284 | T91: 27.868 | U91: 3.19882 | V91: 9.306 | W91: 1.862 | X91: 350.3 | Y91: 1 | Z91: 0 | AA91: No
A92: Yes | C92: Transparent | D92: 4 | E92: [29.105 - 29.703] | F92: Area List #3 | G92: U1481A_15R2_100_101_QRND8005151.raw #1 | H92: 29.105 | I92: 29.703 | J92: 7.42 | K92: 8.66 | L92: 29.48 | M92: 3.02755 | N92: 16.1 | O92: 7.92 | P92: 0.169 | Q92: 29.482 | R92: 3.02735 | S92: 0.171 | T92: 29.488 | U92: 3.02675 | V92: 6.164 | W92: 1.358 | X92: 540.1 | Y92: 1 | Z92: 0 | AA92: No
A93: Yes | C93: Transparent | D93: 1 | E93: [19.407 - 20.403] | F93: Area List #3 | G93: U1481A_15R3_67_68_QRND8005171.raw #1 | H93: 19.407 | I93: 20.403 | J93: 7.08 | K93: 7.66 | L93: 19.869 | M93: 4.46502 | N93: 11.7 | O93: 4.36 | P93: 0.301 | Q93: 19.864 | R93: 4.46597 | S93: 0.337 | T93: 19.885 | U93: 4.46136 | V93: 8.814 | W93: 1.47 | X93: 297.3 | Y93: 1 | Z93: 0 | AA93: No
A94: Yes | C94: Transparent | D94: 2 | E94: [26.298 - 26.996] | F94: Area List #3 | G94: U1481A_15R3_67_68_QRND8005171.raw #1 | H94: 26.298 | I94: 26.996 | J94: 9.93 | K94: 12.4 | L94: 26.667 | M94: 3.34021 | N94: 154 | O94: 143 | P94: 0.136 | Q94: 26.673 | R94: 3.33938 | S94: 0.157 | T94: 26.676 | U94: 3.33907 | V94: 30.17 | W94: 22.37 | X94: 665.2 | Y94: 1 | Z94: 0 | AA94: No
A95: Yes | C95: Transparent | D95: 3 | E95: [27.394 - 28.208] | F95: Area List #3 | G95: U1481A_15R3_67_68_QRND8005171.raw #1 | H95: 27.394 | I95: 28.208 | J95: 9.15 | K95: 8.87 | L95: 27.95 | M95: 3.1897 | N95: 17.2 | O95: 8.19 | P95: 0.234 | Q95: 27.924 | R95: 3.19258 | S95: 0.273 | T95: 27.868 | U95: 3.19883 | V95: 9.565 | W95: 2.232 | X95: 388 | Y95: 1 | Z95: 0 | AA95: No
A96: Yes | C96: Transparent | D96: 4 | E96: [29.105 - 29.703] | F96: Area List #3 | G96: U1481A_15R3_67_68_QRND8005171.raw #1 | H96: 29.105 | I96: 29.703 | J96: 6.83 | K96: 8.33 | L96: 29.489 | M96: 3.02662 | N96: 11.9 | O96: 4.12 | P96: 0.172 | Q96: 29.489 | R96: 3.02664 | S96: 0.171 | T96: 29.497 | U96: 3.02585 | V96: 5.233 | W96: 0.7027 | X96: 529.5 | Y96: 1 | Z96: 0 | AA96: No
A97: Yes | C97: Transparent | D97: 1 | E97: [19.407 - 20.403] | F97: Area List #3 | G97: U1481A_16R3_127_128_QRND8005761.raw #1 | H97: 19.407 | I97: 20.403 | J97: 6.78 | K97: 7.22 | L97: 19.851 | M97: 4.46886 | N97: 12 | O97: 5.01 | P97: 0.286 | Q97: 19.851 | R97: 4.46885 | S97: 0.333 | T97: 19.88 | U97: 4.46238 | V97: 8.644 | W97: 1.671 | X97: 313.5 | Y97: 1 | Z97: 0 | AA97: No
A98: Yes | C98: Transparent | D98: 2 | E98: [26.298 - 26.996] | F98: Area List #3 | G98: U1481A_16R3_127_128_QRND8005761.raw #1 | H98: 26.298 | I98: 26.996 | J98: 8.91 | K98: 12.4 | L98: 26.671 | M98: 3.33966 | N98: 94.9 | O98: 84.1 | P98: 0.144 | Q98: 26.68 | R98: 3.33852 | S98: 0.173 | T98: 26.693 | U98: 3.33691 | V98: 21.96 | W98: 14.52 | X98: 630.9 | Y98: 1 | Z98: 0 | AA98: No
A99: Yes | C99: Transparent | D99: 3 | E99: [27.394 - 28.208] | F99: Area List #3 | G99: U1481A_16R3_127_128_QRND8005761.raw #1 | H99: 27.394 | I99: 28.208 | J99: 8.48 | K99: 8.31 | L99: 27.941 | M99: 3.19062 | N99: 15.2 | O99: 6.8 | P99: 0.209 | Q99: 27.926 | R99: 3.19239 | S99: 0.255 | T99: 27.878 | U99: 3.1977 | V99: 8.568 | W99: 1.735 | X99: 434.2 | Y99: 1 | Z99: 0 | AA99: No
A100: Yes | C100: Transparent | D100: 4 | E100: [29.105 - 29.703] | F100: Area List #3 | G100: U1481A_16R3_127_128_QRND8005761.raw #1 | H100: 29.105 | I100: 29.703 | J100: 7.14 | K100: 9.41 | L100: 29.492 | M100: 3.02635 | N100: 24.8 | O100: 16.2 | P100: 0.174 | Q100: 29.493 | R100: 3.02621 | S100: 0.182 | T100: 29.492 | U100: 3.02633 | V100: 7.891 | W100: 2.944 | X100: 525.5 | Y100: 1 | Z100: 0 | AA100: No
A101: Yes | C101: Transparent | D101: 1 | E101: [19.407 - 20.403] | F101: Area List #3 | G101: U1481A_16R4_85_86_QRND8005801.raw #1 | H101: 19.407 | I101: 20.403 | J101: 9.8 | K101: 10.6 | L101: 19.885 | M101: 4.46138 | N101: 14.7 | O101: 4.53 | P101: 0.319 | Q101: 19.858 | R101: 4.46729 | S101: 0.364 | T101: 19.888 | U101: 4.46061 | V101: 11.79 | W101: 1.647 | X101: 280.7 | Y101: 1 | Z101: 0 | AA101: No
A102: Yes | C102: Transparent | D102: 2 | E102: [26.298 - 26.996] | F102: Area List #3 | G102: U1481A_16R4_85_86_QRND8005801.raw #1 | H102: 26.298 | I102: 26.996 | J102: 11.5 | K102: 14.7 | L102: 26.674 | M102: 3.33923 | N102: 79.7 | O102: 66.5 | P102: 0.143 | Q102: 26.681 | R102: 3.3384 | S102: 0.174 | T102: 26.695 | U102: 3.33675 | V102: 20.7 | W102: 11.57 | X102: 634.2 | Y102: 1 | Z102: 0 | AA102: No
A103: Yes | C103: Transparent | D103: 3 | E103: [27.394 - 28.208] | F103: Area List #3 | G103: U1481A_16R4_85_86_QRND8005801.raw #1 | H103: 27.394 | I103: 28.208 | J103: 11.7 | K103: 11.2 | L103: 27.946 | M103: 3.19012 | N103: 16.1 | O103: 4.71 | P103: 0.25 | Q103: 27.915 | R103: 3.19358 | S103: 0.28 | T103: 27.854 | U103: 3.20042 | V103: 10.63 | W103: 1.317 | X103: 364 | Y103: 1 | Z103: 0 | AA103: No
A104: Yes | C104: Transparent | D104: 4 | E104: [29.105 - 29.703] | F104: Area List #3 | G104: U1481A_16R4_85_86_QRND8005801.raw #1 | H104: 29.105 | I104: 29.703 | J104: 9.57 | K104: 9.86 | L104: 0 | M104: Infinity | N104: 0 | O104: 0 | P104: 0 | Q104: 0 | R104: Infinity | S104: 0 | T104: 29.433 | U104: 3.03229 | V104: 5.604 | W104: -0.2028 | X104: 0 | Y104: 1 | Z104: 0 | AA104: No
A105: Yes | C105: Transparent | D105: 1 | E105: [19.407 - 20.403] | F105: Area List #3 | G105: U1481A_17R1_14_15_QRND8006181.raw #1 | H105: 19.407 | I105: 20.403 | J105: 8.75 | K105: 9.48 | L105: 19.907 | M105: 4.45657 | N105: 14 | O105: 4.87 | P105: 0.319 | Q105: 19.908 | R105: 4.45623 | S105: 0.344 | T105: 19.929 | U105: 4.45167 | V105: 10.76 | W105: 1.674 | X105: 281.3 | Y105: 1 | Z105: 0 | AA105: No
A106: Yes | C106: Transparent | D106: 2 | E106: [26.298 - 26.996] | F106: Area List #3 | G106: U1481A_17R1_14_15_QRND8006181.raw #1 | H106: 26.298 | I106: 26.996 | J106: 9.97 | K106: 13.7 | L106: 26.701 | M106: 3.33592 | N106: 80.1 | O106: 67.9 | P106: 0.144 | Q106: 26.708 | R106: 3.33508 | S106: 0.166 | T106: 26.712 | U106: 3.33464 | V106: 19.56 | W106: 11.31 | X106: 629.1 | Y106: 1 | Z106: 0 | AA106: No
A107: Yes | C107: Transparent | D107: 3 | E107: [27.394 - 28.208] | F107: Area List #3 | G107: U1481A_17R1_14_15_QRND8006181.raw #1 | H107: 27.394 | I107: 28.208 | J107: 10.2 | K107: 10 | L107: 27.968 | M107: 3.18766 | N107: 15.3 | O107: 5.21 | P107: 0.268 | Q107: 27.945 | R107: 3.1902 | S107: 0.309 | T107: 27.875 | U107: 3.19811 | V107: 9.83 | W107: 1.611 | X107: 339.9 | Y107: 1 | Z107: 0 | AA107: No
A108: Yes | C108: Transparent | D108: 4 | E108: [29.105 - 29.703] | F108: Area List #3 | G108: U1481A_17R1_14_15_QRND8006181.raw #1 | H108: 29.105 | I108: 29.703 | J108: 8.34 | K108: 8.91 | L108: 29.486 | M108: 3.02688 | N108: 10.7 | O108: 1.99 | P108: 0.134 | Q108: 29.52 | R108: 3.02351 | S108: 0.1 | T108: 29.551 | U108: 3.02038 | V108: 5.355 | W108: 0.199 | X108: 680.1 | Y108: 1 | Z108: 0 | AA108: No
A109: Yes | C109: Transparent | D109: 1 | E109: [19.407 - 20.403] | F109: Area List #3 | G109: U1481A_18R1_111_112_QRND8006761.raw #1 | H109: 19.407 | I109: 20.403 | J109: 8.41 | K109: 9.08 | L109: 19.87 | M109: 4.46471 | N109: 14.2 | O109: 5.48 | P109: 0.301 | Q109: 19.867 | R109: 4.46543 | S109: 0.338 | T109: 19.899 | U109: 4.45821 | V109: 10.56 | W109: 1.852 | X109: 298.2 | Y109: 1 | Z109: 0 | AA109: No
A110: Yes | C110: Transparent | D110: 2 | E110: [26.298 - 26.996] | F110: Area List #3 | G110: U1481A_18R1_111_112_QRND8006761.raw #1 | H110: 26.298 | I110: 26.996 | J110: 10.4 | K110: 12.6 | L110: 26.665 | M110: 3.34041 | N110: 100 | O110: 88.8 | P110: 0.143 | Q110: 26.671 | R110: 3.33965 | S110: 0.166 | T110: 26.677 | U110: 3.33888 | V110: 22.73 | W110: 14.71 | X110: 636.5 | Y110: 1 | Z110: 0 | AA110: No
A111: Yes | C111: Transparent | D111: 3 | E111: [27.394 - 28.208] | F111: Area List #3 | G111: U1481A_18R1_111_112_QRND8006761.raw #1 | H111: 27.394 | I111: 28.208 | J111: 10.2 | K111: 9.99 | L111: 27.948 | M111: 3.18984 | N111: 16.3 | O111: 6.28 | P111: 0.209 | Q111: 27.922 | R111: 3.1928 | S111: 0.257 | T111: 27.868 | U111: 3.19887 | V111: 9.823 | W111: 1.613 | X111: 436 | Y111: 1 | Z111: 0 | AA111: No
A112: Yes | C112: Transparent | D112: 4 | E112: [29.105 - 29.703] | F112: Area List #3 | G112: U1481A_18R1_111_112_QRND8006761.raw #1 | H112: 29.105 | I112: 29.703 | J112: 8.05 | K112: 8.82 | L112: 29.491 | M112: 3.02645 | N112: 10.8 | O112: 2.21 | P112: 0.137 | Q112: 29.483 | R112: 3.02723 | S112: 0.129 | T112: 29.497 | U112: 3.02578 | V112: 5.328 | W112: 0.2844 | X112: 666.8 | Y112: 1 | Z112: 0 | AA112: No
A113: Yes | C113: Transparent | D113: 1 | E113: [19.407 - 20.403] | F113: Area List #3 | G113: U1481A_19R2_125_126_QRND8007531.raw #1 | H113: 19.407 | I113: 20.403 | J113: 8.98 | K113: 9.84 | L113: 19.857 | M113: 4.46769 | N113: 15 | O113: 5.66 | P113: 0.319 | Q113: 19.856 | R113: 4.46777 | S113: 0.384 | T113: 19.886 | U113: 4.4612 | V113: 11.55 | W113: 2.171 | X113: 280.9 | Y113: 1 | Z113: 0 | AA113: No
A114: Yes | C114: Transparent | D114: 2 | E114: [26.298 - 26.996] | F114: Area List #3 | G114: U1481A_19R2_125_126_QRND8007531.raw #1 | H114: 26.298 | I114: 26.996 | J114: 10.4 | K114: 12.9 | L114: 26.675 | M114: 3.33911 | N114: 68.7 | O114: 57 | P114: 0.141 | Q114: 26.682 | R114: 3.33827 | S114: 0.165 | T114: 26.686 | U114: 3.3378 | V114: 17.5 | W114: 9.377 | X114: 644.2 | Y114: 1 | Z114: 0 | AA114: No
A115: Yes | C115: Transparent | D115: 3 | E115: [27.394 - 28.208] | F115: Area List #3 | G115: U1481A_19R2_125_126_QRND8007531.raw #1 | H115: 27.394 | I115: 28.208 | J115: 10.6 | K115: 10.2 | L115: 27.948 | M115: 3.18989 | N115: 14.8 | O115: 4.48 | P115: 0.25 | Q115: 27.91 | R115: 3.19417 | S115: 0.28 | T115: 27.85 | U115: 3.20089 | V115: 9.702 | W115: 1.256 | X115: 363.9 | Y115: 1 | Z115: 0 | AA115: No
A116: Yes | C116: Transparent | D116: 4 | E116: [29.105 - 29.703] | F116: Area List #3 | G116: U1481A_19R2_125_126_QRND8007531.raw #1 | H116: 29.105 | I116: 29.703 | J116: 8.47 | K116: 9.11 | L116: 29.24 | M116: 3.05177 | N116: 8.73 | O116: 0.122 | P116: 0.036 | Q116: 29.227 | R116: 3.05309 | S116: -1.047 | T116: 29.486 | U116: 3.02688 | V116: 5.126 | W116: -0.1273 | X116: 2523.3 | Y116: 1 | Z116: 0 | AA116: No
A117: No | C117: Transparent | D117: 1 | E117: [19.407 - 20.403] | F117: Area List #3 | G117: U1481A_19R5_80_81_QRND8007561.raw #1 | H117: 19.407 | I117: 20.403 | J117: 7.37 | K117: 8.02 | L117: 19.889 | M117: 4.46045 | N117: 11.7 | O117: 4.01 | P117: 0.29 | Q117: 19.867 | R117: 4.46534 | S117: 0.31 | T117: 19.89 | U117: 4.46026 | V117: 8.914 | W117: 1.244 | X117: 309.2 | Y117: 1 | Z117: 0 | AA117: No
A118: No | C118: Transparent | D118: 2 | E118: [26.298 - 26.996] | F118: Area List #3 | G118: U1481A_19R5_80_81_QRND8007561.raw #1 | H118: 26.298 | I118: 26.996 | J118: 9.84 | K118: 13.3 | L118: 26.675 | M118: 3.33913 | N118: 128 | O118: 117 | P118: 0.137 | Q118: 26.682 | R118: 3.33834 | S118: 0.161 | T118: 26.691 | U118: 3.33723 | V118: 26.84 | W118: 18.76 | X118: 664.3 | Y118: 1 | Z118: 0 | AA118: No
A119: No | C119: Transparent | D119: 3 | E119: [27.394 - 28.208] | F119: Area List #3 | G119: U1481A_19R5_80_81_QRND8007561.raw #1 | H119: 27.394 | I119: 28.208 | J119: 9.37 | K119: 9.38 | L119: 27.953 | M119: 3.18932 | N119: 18 | O119: 8.58 | P119: 0.208 | Q119: 27.937 | R119: 3.19117 | S119: 0.253 | T119: 27.883 | U119: 3.19718 | V119: 9.8 | W119: 2.172 | X119: 437.7 | Y119: 1 | Z119: 0 | AA119: No
A120: No | C120: Transparent | D120: 4 | E120: [29.105 - 29.703] | F120: Area List #3 | G120: U1481A_19R5_80_81_QRND8007561.raw #1 | H120: 29.105 | I120: 29.703 | J120: 7.27 | K120: 8.55 | L120: 29.503 | M120: 3.0252 | N120: 14.4 | O120: 6.31 | P120: 0.167 | Q120: 29.5 | R120: 3.02549 | S120: 0.171 | T120: 29.507 | U120: 3.02484 | V120: 5.805 | W120: 1.078 | X120: 546.3 | Y120: 1 | Z120: 0 | AA120: No
A121: Yes | C121: Transparent | D121: 1 | E121: [19.407 - 20.403] | F121: Area List #3 | G121: U1481A_20R1_126_127_QRND8008201.raw #1 | H121: 19.407 | I121: 20.403 | J121: 7.01 | K121: 7.34 | L121: 19.874 | M121: 4.46393 | N121: 11.2 | O121: 4.03 | P121: 0.247 | Q121: 19.881 | R121: 4.46223 | S121: 0.3 | T121: 19.9 | U121: 4.45805 | V121: 8.353 | W121: 1.207 | X121: 363.1 | Y121: 1 | Z121: 0 | AA121: No
A122: Yes | C122: Transparent | D122: 2 | E122: [26.298 - 26.996] | F122: Area List #3 | G122: U1481A_20R1_126_127_QRND8008201.raw #1 | H122: 26.298 | I122: 26.996 | J122: 9.53 | K122: 13.1 | L122: 26.676 | M122: 3.33909 | N122: 126 | O122: 114 | P122: 0.14 | Q122: 26.683 | R122: 3.3382 | S122: 0.166 | T122: 26.693 | U122: 3.33691 | V122: 26.93 | W122: 19.04 | X122: 649 | Y122: 1 | Z122: 0 | AA122: No
A123: Yes | C123: Transparent | D123: 3 | E123: [27.394 - 28.208] | F123: Area List #3 | G123: U1481A_20R1_126_127_QRND8008201.raw #1 | H123: 27.394 | I123: 28.208 | J123: 8.92 | K123: 9.25 | L123: 27.952 | M123: 3.18949 | N123: 17.9 | O123: 8.79 | P123: 0.229 | Q123: 27.93 | R123: 3.19191 | S123: 0.265 | T123: 27.878 | U123: 3.19771 | V123: 9.727 | W123: 2.332 | X123: 397.2 | Y123: 1 | Z123: 0 | AA123: No
A124: Yes | C124: Transparent | D124: 4 | E124: [29.105 - 29.703] | F124: Area List #3 | G124: U1481A_20R1_126_127_QRND8008201.raw #1 | H124: 29.105 | I124: 29.703 | J124: 7.08 | K124: 8.68 | L124: 29.492 | M124: 3.02633 | N124: 18.1 | O124: 9.96 | P124: 0.171 | Q124: 29.494 | R124: 3.0261 | S124: 0.174 | T124: 29.499 | U124: 3.02562 | V124: 6.45 | W124: 1.738 | X124: 534 | Y124: 1 | Z124: 0 | AA124: No
A125: Yes | C125: Transparent | D125: 1 | E125: [19.407 - 20.403] | F125: Area List #3 | G125: U1481A_21R2_6_7_QRND8008601.raw #1 | H125: 19.407 | I125: 20.403 | J125: 7.54 | K125: 8.02 | L125: 19.861 | M125: 4.46664 | N125: 12.2 | O125: 4.44 | P125: 0.289 | Q125: 19.854 | R125: 4.46829 | S125: 0.339 | T125: 19.888 | U125: 4.46074 | V125: 9.257 | W125: 1.506 | X125: 310.3 | Y125: 1 | Z125: 0 | AA125: No
A126: Yes | C126: Transparent | D126: 2 | E126: [26.298 - 26.996] | F126: Area List #3 | G126: U1481A_21R2_6_7_QRND8008601.raw #1 | H126: 26.298 | I126: 26.996 | J126: 9.79 | K126: 12.3 | L126: 26.663 | M126: 3.34067 | N126: 118 | O126: 107 | P126: 0.14 | Q126: 26.67 | R126: 3.33983 | S126: 0.166 | T126: 26.678 | U126: 3.33883 | V126: 25.43 | W126: 17.71 | X126: 647.9 | Y126: 1 | Z126: 0 | AA126: No
A127: Yes | C127: Transparent | D127: 3 | E127: [27.394 - 28.208] | F127: Area List #3 | G127: U1481A_21R2_6_7_QRND8008601.raw #1 | H127: 27.394 | I127: 28.208 | J127: 9.75 | K127: 9.21 | L127: 27.946 | M127: 3.19014 | N127: 17.8 | O127: 8.41 | P127: 0.21 | Q127: 27.928 | R127: 3.19216 | S127: 0.281 | T127: 27.85 | U127: 3.20094 | V127: 10.08 | W127: 2.364 | X127: 433.4 | Y127: 1 | Z127: 0 | AA127: No
A128: Yes | C128: Transparent | D128: 4 | E128: [29.105 - 29.703] | F128: Area List #3 | G128: U1481A_21R2_6_7_QRND8008601.raw #1 | H128: 29.105 | I128: 29.703 | J128: 7.38 | K128: 8.6 | L128: 29.477 | M128: 3.02779 | N128: 15.8 | O128: 7.65 | P128: 0.162 | Q128: 29.481 | R128: 3.02737 | S128: 0.169 | T128: 29.483 | U128: 3.02723 | V128: 6.068 | W128: 1.293 | X128: 564.9 | Y128: 1 | Z128: 0 | AA128: No
A129: Yes | C129: Transparent | D129: 1 | E129: [19.407 - 20.403] | F129: Area List #3 | G129: U1481A_22R2_63_64_QRND8009641.raw #1 | H129: 19.407 | I129: 20.403 | J129: 8.02 | K129: 8.52 | L129: 19.885 | M129: 4.46127 | N129: 12.6 | O129: 4.33 | P129: 0.311 | Q129: 19.875 | R129: 4.46367 | S129: 0.332 | T129: 19.907 | U129: 4.45643 | V129: 9.675 | W129: 1.437 | X129: 287.9 | Y129: 1 | Z129: 0 | AA129: No
A130: Yes | C130: Transparent | D130: 2 | E130: [26.298 - 26.996] | F130: Area List #3 | G130: U1481A_22R2_63_64_QRND8009641.raw #1 | H130: 26.298 | I130: 26.996 | J130: 9.93 | K130: 14.1 | L130: 26.681 | M130: 3.33848 | N130: 98.1 | O130: 85.9 | P130: 0.142 | Q130: 26.689 | R130: 3.33747 | S130: 0.169 | T130: 26.7 | U130: 3.33609 | V130: 22.89 | W130: 14.51 | X130: 638.1 | Y130: 1 | Z130: 0 | AA130: No
A131: Yes | C131: Transparent | D131: 3 | E131: [27.394 - 28.208] | F131: Area List #3 | G131: U1481A_22R2_63_64_QRND8009641.raw #1 | H131: 27.394 | I131: 28.208 | J131: 9.97 | K131: 9.62 | L131: 27.953 | M131: 3.18936 | N131: 16 | O131: 6.26 | P131: 0.214 | Q131: 27.933 | R131: 3.19158 | S131: 0.256 | T131: 27.872 | U131: 3.1984 | V131: 9.569 | W131: 1.601 | X131: 425.1 | Y131: 1 | Z131: 0 | AA131: No
A132: Yes | C132: Transparent | D132: 4 | E132: [29.105 - 29.703] | F132: Area List #3 | G132: U1481A_22R2_63_64_QRND8009641.raw #1 | H132: 29.105 | I132: 29.703 | J132: 7.93 | K132: 9.34 | L132: 29.503 | M132: 3.02525 | N132: 16 | O132: 7.13 | P132: 0.168 | Q132: 29.504 | R132: 3.02506 | S132: 0.162 | T132: 29.51 | U132: 3.02449 | V132: 6.317 | W132: 1.154 | X132: 543.4 | Y132: 1 | Z132: 0 | AA132: No
A133: Yes | C133: Transparent | D133: 1 | E133: [19.407 - 20.403] | F133: Area List #3 | G133: U1481A_22R3_128_129_QRND8009751.raw #1 | H133: 19.407 | I133: 20.403 | J133: 7.45 | K133: 8.02 | L133: 19.878 | M133: 4.46298 | N133: 12.4 | O133: 4.67 | P133: 0.275 | Q133: 19.866 | R133: 4.46567 | S133: 0.316 | T133: 19.898 | U133: 4.45845 | V133: 9.183 | W133: 1.476 | X133: 325.6 | Y133: 1 | Z133: 0 | AA133: No
A134: Yes | C134: Transparent | D134: 2 | E134: [26.298 - 26.996] | F134: Area List #3 | G134: U1481A_22R3_128_129_QRND8009751.raw #1 | H134: 26.298 | I134: 26.996 | J134: 9.74 | K134: 13.2 | L134: 26.676 | M134: 3.33908 | N134: 114 | O134: 102 | P134: 0.142 | Q134: 26.683 | R134: 3.33818 | S134: 0.169 | T134: 26.694 | U134: 3.33684 | V134: 25.26 | W134: 17.25 | X134: 638.8 | Y134: 1 | Z134: 0 | AA134: No
A135: Yes | C135: Transparent | D135: 3 | E135: [27.394 - 28.208] | F135: Area List #3 | G135: U1481A_22R3_128_129_QRND8009751.raw #1 | H135: 27.394 | I135: 28.208 | J135: 9.19 | K135: 9.2 | L135: 27.947 | M135: 3.18999 | N135: 17.6 | O135: 8.4 | P135: 0.219 | Q135: 27.931 | R135: 3.19181 | S135: 0.265 | T135: 27.879 | U135: 3.19766 | V135: 9.708 | W135: 2.229 | X135: 415.4 | Y135: 1 | Z135: 0 | AA135: No
A136: Yes | C136: Transparent | D136: 4 | E136: [29.105 - 29.703] | F136: Area List #3 | G136: U1481A_22R3_128_129_QRND8009751.raw #1 | H136: 29.105 | I136: 29.703 | J136: 7.36 | K136: 8.65 | L136: 29.493 | M136: 3.02619 | N136: 16.3 | O136: 8.14 | P136: 0.162 | Q136: 29.496 | R136: 3.02595 | S136: 0.171 | T136: 29.5 | U136: 3.02555 | V136: 6.177 | W136: 1.392 | X136: 561.8 | Y136: 1 | Z136: 0 | AA136: No
A137: Yes | C137: Transparent | D137: 1 | E137: [19.407 - 20.403] | F137: Area List #3 | G137: U1481A_23R1_33_34_CYL8010721.raw #1 | H137: 19.407 | I137: 20.403 | J137: 8.4 | K137: 9.2 | L137: 19.857 | M137: 4.46756 | N137: 14.5 | O137: 5.73 | P137: 0.292 | Q137: 19.849 | R137: 4.46928 | S137: 0.325 | T137: 19.885 | U137: 4.46146 | V137: 10.63 | W137: 1.864 | X137: 306.9 | Y137: 1 | Z137: 0 | AA137: No
A138: Yes | C138: Transparent | D138: 2 | E138: [26.298 - 26.996] | F138: Area List #3 | G138: U1481A_23R1_33_34_CYL8010721.raw #1 | H138: 26.298 | I138: 26.996 | J138: 10.2 | K138: 12.9 | L138: 26.666 | M138: 3.34027 | N138: 77.2 | O138: 65.6 | P138: 0.147 | Q138: 26.675 | R138: 3.33917 | S138: 0.173 | T138: 26.685 | U138: 3.33794 | V138: 19.36 | W138: 11.32 | X138: 617 | Y138: 1 | Z138: 0 | AA138: No
A139: Yes | C139: Transparent | D139: 3 | E139: [27.394 - 28.208] | F139: Area List #3 | G139: U1481A_23R1_33_34_CYL8010721.raw #1 | H139: 27.394 | I139: 28.208 | J139: 10.1 | K139: 9.53 | L139: 27.936 | M139: 3.19128 | N139: 15.1 | O139: 5.4 | P139: 0.24 | Q139: 27.905 | R139: 3.19471 | S139: 0.272 | T139: 27.854 | U139: 3.2004 | V139: 9.46 | W139: 1.468 | X139: 378.6 | Y139: 1 | Z139: 0 | AA139: No
A140: Yes | C140: Transparent | D140: 4 | E140: [29.105 - 29.703] | F140: Area List #3 | G140: U1481A_23R1_33_34_CYL8010721.raw #1 | H140: 29.105 | I140: 29.703 | J140: 8.15 | K140: 9.53 | L140: 29.483 | M140: 3.02718 | N140: 14.2 | O140: 5.2 | P140: 0.17 | Q140: 29.482 | R140: 3.02729 | S140: 0.173 | T140: 29.489 | U140: 3.02659 | V140: 6.183 | W140: 0.8977 | X140: 536.4 | Y140: 1 | Z140: 0 | AA140: No
A141: Yes | C141: Transparent | D141: 1 | E141: [19.407 - 20.403] | F141: Area List #3 | G141: U1481A_23R4_83_84_CYL8010951.raw #1 | H141: 19.407 | I141: 20.403 | J141: 5.91 | K141: 6.3 | L141: 19.888 | M141: 4.46079 | N141: 8.61 | O141: 2.51 | P141: 0.257 | Q141: 19.87 | R141: 4.46474 | S141: 0.291 | T141: 19.906 | U141: 4.45677 | V141: 6.811 | W141: 0.7322 | X141: 349 | Y141: 1 | Z141: 0 | AA141: No
A142: Yes | C142: Transparent | D142: 2 | E142: [26.298 - 26.996] | F142: Area List #3 | G142: U1481A_23R4_83_84_CYL8010951.raw #1 | H142: 26.298 | I142: 26.996 | J142: 9.61 | K142: 14.3 | L142: 26.68 | M142: 3.33852 | N142: 216 | O142: 204 | P142: 0.134 | Q142: 26.686 | R142: 3.33783 | S142: 0.152 | T142: 26.691 | U142: 3.33721 | V142: 39.35 | W142: 31.03 | X142: 679.1 | Y142: 1 | Z142: 0 | AA142: No
A143: Yes | C143: Transparent | D143: 3 | E143: [27.394 - 28.208] | F143: Area List #3 | G143: U1481A_23R4_83_84_CYL8010951.raw #1 | H143: 27.394 | I143: 28.208 | J143: 8.65 | K143: 8.74 | L143: 27.96 | M143: 3.18857 | N143: 22.5 | O143: 13.8 | P143: 0.188 | Q143: 27.959 | R143: 3.18872 | S143: 0.272 | T143: 27.864 | U143: 3.19933 | V143: 10.84 | W143: 3.764 | X143: 484.5 | Y143: 1 | Z143: 0 | AA143: No
A144: Yes | C144: Transparent | D144: 4 | E144: [29.105 - 29.703] | F144: Area List #3 | G144: U1481A_23R4_83_84_CYL8010951.raw #1 | H144: 29.105 | I144: 29.703 | J144: 5.87 | K144: 7.33 | L144: 29.514 | M144: 3.02407 | N144: 14.4 | O144: 7.51 | P144: 0.158 | Q144: 29.515 | R144: 3.02404 | S144: 0.157 | T144: 29.524 | U144: 3.02306 | V144: 5.127 | W144: 1.182 | X144: 577.3 | Y144: 1 | Z144: 0 | AA144: No
A145: Yes | C145: Transparent | D145: 1 | E145: [19.407 - 20.403] | F145: Area List #3 | G145: U1481A_23R5_9_10_CYL8010981.raw #1 | H145: 19.407 | I145: 20.403 | J145: 8.11 | K145: 8.89 | L145: 19.866 | M145: 4.46554 | N145: 14 | O145: 5.52 | P145: 0.311 | Q145: 19.86 | R145: 4.46694 | S145: 0.349 | T145: 19.891 | U145: 4.4601 | V145: 10.4 | W145: 1.926 | X145: 288.2 | Y145: 1 | Z145: 0 | AA145: No
A146: Yes | C146: Transparent | D146: 2 | E146: [26.298 - 26.996] | F146: Area List #3 | G146: U1481A_23R5_9_10_CYL8010981.raw #1 | H146: 26.298 | I146: 26.996 | J146: 9.8 | K146: 12.3 | L146: 26.667 | M146: 3.34013 | N146: 91.3 | O146: 80.2 | P146: 0.141 | Q146: 26.675 | R146: 3.33921 | S146: 0.167 | T146: 26.682 | U146: 3.33825 | V146: 21.13 | W146: 13.41 | X146: 642.5 | Y146: 1 | Z146: 0 | AA146: No
A147: Yes | C147: Transparent | D147: 3 | E147: [27.394 - 28.208] | F147: Area List #3 | G147: U1481A_23R5_9_10_CYL8010981.raw #1 | H147: 27.394 | I147: 28.208 | J147: 9.72 | K147: 9.51 | L147: 27.937 | M147: 3.19113 | N147: 15.2 | O147: 5.65 | P147: 0.252 | Q147: 27.905 | R147: 3.1947 | S147: 0.281 | T147: 27.861 | U147: 3.19962 | V147: 9.414 | W147: 1.591 | X147: 360.7 | Y147: 1 | Z147: 0 | AA147: No
A148: Yes | C148: Transparent | D148: 4 | E148: [29.105 - 29.703] | F148: Area List #3 | G148: U1481A_23R5_9_10_CYL8010981.raw #1 | H148: 29.105 | I148: 29.703 | J148: 7.69 | K148: 8.93 | L148: 29.475 | M148: 3.02801 | N148: 13.9 | O148: 5.45 | P148: 0.164 | Q148: 29.48 | R148: 3.02752 | S148: 0.163 | T148: 29.484 | U148: 3.02716 | V148: 5.855 | W148: 0.8877 | X148: 556.1 | Y148: 1 | Z148: 0 | AA148: No
A149: Yes | C149: Transparent | D149: 1 | E149: [19.407 - 20.403] | F149: Area List #3 | G149: U1481A_24R1_27_28_CYL8011521.raw #1 | H149: 19.407 | I149: 20.403 | J149: 8.4 | K149: 9.64 | L149: 19.875 | M149: 4.4637 | N149: 14.7 | O149: 5.74 | P149: 0.333 | Q149: 19.868 | R149: 4.46524 | S149: 0.353 | T149: 19.89 | U149: 4.46025 | V149: 11.02 | W149: 2.027 | X149: 268.8 | Y149: 1 | Z149: 0 | AA149: No
A150: Yes | C150: Transparent | D150: 2 | E150: [26.298 - 26.996] | F150: Area List #3 | G150: U1481A_24R1_27_28_CYL8011521.raw #1 | H150: 26.298 | I150: 26.996 | J150: 10.3 | K150: 12.9 | L150: 26.672 | M150: 3.33948 | N150: 106 | O150: 94.2 | P150: 0.138 | Q150: 26.679 | R150: 3.33863 | S150: 0.16 | T150: 26.685 | U150: 3.33795 | V150: 23.13 | W150: 15.05 | X150: 658.8 | Y150: 1 | Z150: 0 | AA150: No
A151: Yes | C151: Transparent | D151: 3 | E151: [27.394 - 28.208] | F151: Area List #3 | G151: U1481A_24R1_27_28_CYL8011521.raw #1 | H151: 27.394 | I151: 28.208 | J151: 10.4 | K151: 10 | L151: 27.953 | M151: 3.18932 | N151: 16.3 | O151: 6.16 | P151: 0.219 | Q151: 27.934 | R151: 3.19148 | S151: 0.275 | T151: 27.861 | U151: 3.19966 | V151: 9.981 | W151: 1.693 | X151: 416 | Y151: 1 | Z151: 0 | AA151: No
A152: Yes | C152: Transparent | D152: 4 | E152: [29.105 - 29.703] | F152: Area List #3 | G152: U1481A_24R1_27_28_CYL8011521.raw #1 | H152: 29.105 | I152: 29.703 | J152: 8.09 | K152: 8.43 | L152: 0 | M152: Infinity | N152: 0 | O152: 0 | P152: 0 | Q152: 0 | R152: Infinity | S152: 0 | T152: 29.445 | U152: 3.031 | V152: 4.762 | W152: -0.1756 | X152: 0 | Y152: 1 | Z152: 0 | AA152: No
A153: Yes | C153: Transparent | D153: 1 | E153: [19.407 - 20.403] | F153: Area List #3 | G153: U1481A_24R3_79_80_CYL8011531.raw #1 | H153: 19.407 | I153: 20.403 | J153: 7.86 | K153: 8.9 | L153: 19.887 | M153: 4.46101 | N153: 13.4 | O153: 5 | P153: 0.326 | Q153: 19.861 | R153: 4.46664 | S153: 0.359 | T153: 19.894 | U153: 4.45935 | V153: 10.15 | W153: 1.795 | X153: 274.6 | Y153: 1 | Z153: 0 | AA153: No
A154: Yes | C154: Transparent | D154: 2 | E154: [26.298 - 26.996] | F154: Area List #3 | G154: U1481A_24R3_79_80_CYL8011531.raw #1 | H154: 26.298 | I154: 26.996 | J154: 10.4 | K154: 13 | L154: 26.666 | M154: 3.34029 | N154: 126 | O154: 115 | P154: 0.138 | Q154: 26.672 | R154: 3.33957 | S154: 0.161 | T154: 26.679 | U154: 3.33865 | V154: 26.56 | W154: 18.43 | X154: 655.2 | Y154: 1 | Z154: 0 | AA154: No
A155: Yes | C155: Transparent | D155: 3 | E155: [27.394 - 28.208] | F155: Area List #3 | G155: U1481A_24R3_79_80_CYL8011531.raw #1 | H155: 27.394 | I155: 28.208 | J155: 10.1 | K155: 10.1 | L155: 27.953 | M155: 3.18936 | N155: 17.3 | O155: 7.25 | P155: 0.22 | Q155: 27.933 | R155: 3.19154 | S155: 0.268 | T155: 27.876 | U155: 3.19798 | V155: 10.13 | W155: 1.943 | X155: 413.5 | Y155: 1 | Z155: 0 | AA155: No
A156: Yes | C156: Transparent | D156: 4 | E156: [29.105 - 29.703] | F156: Area List #3 | G156: U1481A_24R3_79_80_CYL8011531.raw #1 | H156: 29.105 | I156: 29.703 | J156: 7.57 | K156: 8.16 | L156: 29.539 | M156: 3.02161 | N156: 8.16 | O156: 0.168 | P156: 0.163 | Q156: 29.463 | R156: 3.02918 | S156: -0.657 | T156: 29.447 | U156: 3.03086 | V156: 4.59 | W156: -0.1106 | X156: 559.4 | Y156: 1 | Z156: 0 | AA156: No
A157: Yes | C157: Transparent | D157: 1 | E157: [19.407 - 20.403] | F157: Area List #3 | G157: U1481A_24R6_90_91_CYL8011881.raw #1 | H157: 19.407 | I157: 20.403 | J157: 9.69 | K157: 11 | L157: 19.859 | M157: 4.46717 | N157: 16.3 | O157: 6.06 | P157: 0.364 | Q157: 19.852 | R157: 4.46878 | S157: 0.387 | T157: 19.873 | U157: 4.46409 | V157: 12.66 | W157: 2.346 | X157: 246.1 | Y157: 1 | Z157: 0 | AA157: No
A158: Yes | C158: Transparent | D158: 2 | E158: [26.298 - 26.996] | F158: Area List #3 | G158: U1481A_24R6_90_91_CYL8011881.raw #1 | H158: 26.298 | I158: 26.996 | J158: 11 | K158: 13.3 | L158: 26.678 | M158: 3.33882 | N158: 86 | O158: 73.8 | P158: 0.141 | Q158: 26.685 | R158: 3.33798 | S158: 0.161 | T158: 26.687 | U158: 3.33774 | V158: 20.31 | W158: 11.86 | X158: 643.4 | Y158: 1 | Z158: 0 | AA158: No
A159: Yes | C159: Transparent | D159: 3 | E159: [27.394 - 28.208] | F159: Area List #3 | G159: U1481A_24R6_90_91_CYL8011881.raw #1 | H159: 27.394 | I159: 28.208 | J159: 11.3 | K159: 10.8 | L159: 27.957 | M159: 3.18887 | N159: 15.4 | O159: 4.46 | P159: 0.214 | Q159: 27.943 | R159: 3.1905 | S159: 0.261 | T159: 27.873 | U159: 3.19825 | V159: 10.14 | W159: 1.165 | X159: 425.8 | Y159: 1 | Z159: 0 | AA159: No
A160: Yes | C160: Transparent | D160: 4 | E160: [29.105 - 29.703] | F160: Area List #3 | G160: U1481A_24R6_90_91_CYL8011881.raw #1 | H160: 29.105 | I160: 29.703 | J160: 9.21 | K160: 9.29 | L160: 29.117 | M160: 3.06438 | N160: 9.42 | O160: 0.206 | P160: 0 | Q160: 0 | R160: Infinity | S160: -0.638 | T160: 29.41 | U160: 3.03455 | V160: 5.399 | W160: -0.1311 | X160: 0 | Y160: 1 | Z160: 0 | AA160: No
A161: Yes | C161: Transparent | D161: 1 | E161: [19.407 - 20.403] | F161: Area List #3 | G161: U1481A_24R7_97_98_CYL8011621.raw #1 | H161: 19.407 | I161: 20.403 | J161: 8.15 | K161: 9.07 | L161: 19.873 | M161: 4.46398 | N161: 14.2 | O161: 5.58 | P161: 0.315 | Q161: 19.875 | R161: 4.4635 | S161: 0.37 | T161: 19.899 | U161: 4.45825 | V161: 10.64 | W161: 2.062 | X161: 284.2 | Y161: 1 | Z161: 0 | AA161: No
A162: Yes | C162: Transparent | D162: 2 | E162: [26.298 - 26.996] | F162: Area List #3 | G162: U1481A_24R7_97_98_CYL8011621.raw #1 | H162: 26.298 | I162: 26.996 | J162: 10.1 | K162: 14.6 | L162: 26.685 | M162: 3.33789 | N162: 111 | O162: 98 | P162: 0.143 | Q162: 26.693 | R162: 3.33699 | S162: 0.165 | T162: 26.699 | U162: 3.33624 | V162: 24.78 | W162: 16.15 | X162: 635 | Y162: 1 | Z162: 0 | AA162: No
A163: Yes | C163: Transparent | D163: 3 | E163: [27.394 - 28.208] | F163: Area List #3 | G163: U1481A_24R7_97_98_CYL8011621.raw #1 | H163: 27.394 | I163: 28.208 | J163: 10.5 | K163: 10.6 | L163: 27.967 | M163: 3.18777 | N163: 17.4 | O163: 6.85 | P163: 0.192 | Q163: 27.957 | R163: 3.18886 | S163: 0.258 | T163: 27.879 | U163: 3.19763 | V163: 10.35 | W163: 1.765 | X163: 474.1 | Y163: 1 | Z163: 0 | AA163: No
A164: Yes | C164: Transparent | D164: 4 | E164: [29.105 - 29.703] | F164: Area List #3 | G164: U1481A_24R7_97_98_CYL8011621.raw #1 | H164: 29.105 | I164: 29.703 | J164: 7.91 | K164: 8.15 | L164: 29.203 | M164: 3.05555 | N164: 8.19 | O164: 0.246 | P164: 0.102 | Q164: 29.21 | R164: 3.05492 | S164: -0.518 | T164: 29.466 | U164: 3.02887 | V164: 4.673 | W164: -0.1272 | X164: 894.7 | Y164: 1 | Z164: 0 | AA164: No
A165: Yes | C165: Transparent | D165: 1 | E165: [19.407 - 20.403] | F165: Area List #3 | G165: U1481A_25R1_26_27_CYL8012311.raw #1 | H165: 19.407 | I165: 20.403 | J165: 9.75 | K165: 10.8 | L165: 19.853 | M165: 4.46839 | N165: 15.4 | O165: 5.16 | P165: 0.381 | Q165: 19.837 | R165: 4.47208 | S165: 0.42 | T165: 19.865 | U165: 4.46587 | V165: 12.39 | W165: 2.165 | X165: 235 | Y165: 1 | Z165: 0 | AA165: No
A166: Yes | C166: Transparent | D166: 2 | E166: [26.298 - 26.996] | F166: Area List #3 | G166: U1481A_25R1_26_27_CYL8012311.raw #1 | H166: 26.298 | I166: 26.996 | J166: 11.3 | K166: 14 | L166: 26.668 | M166: 3.34007 | N166: 89.4 | O166: 76.7 | P166: 0.139 | Q166: 26.675 | R166: 3.33921 | S166: 0.162 | T166: 26.681 | U166: 3.33842 | V166: 21.24 | W166: 12.43 | X166: 650.9 | Y166: 1 | Z166: 0 | AA166: No
A167: Yes | C167: Transparent | D167: 3 | E167: [27.394 - 28.208] | F167: Area List #3 | G167: U1481A_25R1_26_27_CYL8012311.raw #1 | H167: 27.394 | I167: 28.208 | J167: 11.9 | K167: 11.4 | L167: 27.955 | M167: 3.18914 | N167: 16.5 | O167: 4.91 | P167: 0.249 | Q167: 27.911 | R167: 3.19405 | S167: 0.27 | T167: 27.862 | U167: 3.19958 | V167: 10.81 | W167: 1.327 | X167: 365.5 | Y167: 1 | Z167: 0 | AA167: No
A168: Yes | C168: Transparent | D168: 4 | E168: [29.105 - 29.703] | F168: Area List #3 | G168: U1481A_25R1_26_27_CYL8012311.raw #1 | H168: 29.105 | I168: 29.703 | J168: 9.37 | K168: 9.52 | L168: 29.149 | M168: 3.06114 | N168: 9.56 | O168: 0.18 | P168: 0 | Q168: 0 | R168: Infinity | S168: -0.785 | T168: 29.431 | U168: 3.03248 | V168: 5.503 | W168: -0.1413 | X168: 0 | Y168: 1 | Z168: 0 | AA168: No
A169: Yes | C169: Transparent | D169: 1 | E169: [19.407 - 20.403] | F169: Area List #3 | G169: U1481A_25R2_32_33_CYL8012411.raw #1 | H169: 19.407 | I169: 20.403 | J169: 8.08 | K169: 9.15 | L169: 19.869 | M169: 4.46499 | N169: 13.9 | O169: 5.29 | P169: 0.335 | Q169: 19.87 | R169: 4.46466 | S169: 0.361 | T169: 19.897 | U169: 4.45866 | V169: 10.49 | W169: 1.909 | X169: 267.7 | Y169: 1 | Z169: 0 | AA169: No
A170: Yes | C170: Transparent | D170: 2 | E170: [26.298 - 26.996] | F170: Area List #3 | G170: U1481A_25R2_32_33_CYL8012411.raw #1 | H170: 26.298 | I170: 26.996 | J170: 10.2 | K170: 14.1 | L170: 26.68 | M170: 3.33853 | N170: 123 | O170: 111 | P170: 0.14 | Q170: 26.686 | R170: 3.33783 | S170: 0.16 | T170: 26.692 | U170: 3.33704 | V170: 26.24 | W170: 17.76 | X170: 648.2 | Y170: 1 | Z170: 0 | AA170: No
A171: Yes | C171: Transparent | D171: 3 | E171: [27.394 - 28.208] | F171: Area List #3 | G171: U1481A_25R2_32_33_CYL8012411.raw #1 | H171: 27.394 | I171: 28.208 | J171: 10.1 | K171: 10.2 | L171: 27.971 | M171: 3.1873 | N171: 17.2 | O171: 6.97 | P171: 0.23 | Q171: 27.95 | R171: 3.18971 | S171: 0.311 | T171: 27.854 | U171: 3.20047 | V171: 10.46 | W171: 2.163 | X171: 395.4 | Y171: 1 | Z171: 0 | AA171: No
A172: Yes | C172: Transparent | D172: 4 | E172: [29.105 - 29.703] | F172: Area List #3 | G172: U1481A_25R2_32_33_CYL8012411.raw #1 | H172: 29.105 | I172: 29.703 | J172: 7.86 | K172: 7.98 | L172: 29.137 | M172: 3.06237 | N172: 7.93 | O172: 0.0607 | P172: 0.024 | Q172: 29.132 | R172: 3.06287 | S172: -2.353 | T172: 29.444 | U172: 3.03112 | V172: 4.594 | W172: -0.1429 | X172: 3818.9 | Y172: 1 | Z172: 0 | AA172: No
A173: Yes | C173: Transparent | D173: 1 | E173: [19.407 - 20.403] | F173: Area List #3 | G173: U1481A_26R1_66_67_QRND8013261.raw #1 | H173: 19.407 | I173: 20.403 | J173: 8.71 | K173: 10.2 | L173: 19.916 | M173: 4.45439 | N173: 14.2 | O173: 4.71 | P173: 0.324 | Q173: 19.914 | R173: 4.45505 | S173: 0.38 | T173: 19.931 | U173: 4.45126 | V173: 11.19 | W173: 1.79 | X173: 276.6 | Y173: 1 | Z173: 0 | AA173: No
A174: Yes | C174: Transparent | D174: 2 | E174: [26.298 - 26.996] | F174: Area List #3 | G174: U1481A_26R1_66_67_QRND8013261.raw #1 | H174: 26.298 | I174: 26.996 | J174: 9.96 | K174: 14.5 | L174: 26.727 | M174: 3.33274 | N174: 76 | O174: 63.2 | P174: 0.138 | Q174: 26.733 | R174: 3.33201 | S174: 0.154 | T174: 26.737 | U174: 3.33157 | V174: 18.27 | W174: 9.73 | X174: 659.8 | Y174: 1 | Z174: 0 | AA174: No
A175: Yes | C175: Transparent | D175: 3 | E175: [27.394 - 28.208] | F175: Area List #3 | G175: U1481A_26R1_66_67_QRND8013261.raw #1 | H175: 27.394 | I175: 28.208 | J175: 10.5 | K175: 10.8 | L175: 28.009 | M175: 3.18308 | N175: 15.2 | O175: 4.48 | P175: 0.257 | Q175: 27.964 | R175: 3.18816 | S175: 0.288 | T175: 27.906 | U175: 3.19457 | V175: 9.946 | W175: 1.287 | X175: 354.6 | Y175: 1 | Z175: 0 | AA175: No
A176: Yes | C176: Transparent | D176: 4 | E176: [29.105 - 29.703] | F176: Area List #3 | G176: U1481A_26R1_66_67_QRND8013261.raw #1 | H176: 29.105 | I176: 29.703 | J176: 8.75 | K176: 8.53 | L176: 29.55 | M176: 3.02051 | N176: 9.04 | O176: 0.455 | P176: 0 | Q176: 0 | R176: Infinity | S176: -0.11 | T176: 29.491 | U176: 3.02637 | V176: 5.117 | W176: -0.05029 | X176: 0 | Y176: 1 | Z176: 0 | AA176: No
A177: Yes | C177: Transparent | D177: 1 | E177: [19.407 - 20.403] | F177: Area List #3 | G177: U1481A_27R6_55_56_QRND8015901.raw #1 | H177: 19.407 | I177: 20.403 | J177: 7.93 | K177: 9.12 | L177: 19.869 | M177: 4.46489 | N177: 13.6 | O177: 5.1 | P177: 0.322 | Q177: 19.856 | R177: 4.46793 | S177: 0.371 | T177: 19.884 | U177: 4.46163 | V177: 10.38 | W177: 1.89 | X177: 278.4 | Y177: 1 | Z177: 0 | AA177: No
A178: Yes | C178: Transparent | D178: 2 | E178: [26.298 - 26.996] | F178: Area List #3 | G178: U1481A_27R6_55_56_QRND8015901.raw #1 | H178: 26.298 | I178: 26.996 | J178: 9.91 | K178: 13.5 | L178: 26.68 | M178: 3.33854 | N178: 108 | O178: 95.7 | P178: 0.14 | Q178: 26.686 | R178: 3.33783 | S178: 0.161 | T178: 26.689 | U178: 3.33744 | V178: 23.63 | W178: 15.45 | X178: 647.8 | Y178: 1 | Z178: 0 | AA178: No
A179: Yes | C179: Transparent | D179: 3 | E179: [27.394 - 28.208] | F179: Area List #3 | G179: U1481A_27R6_55_56_QRND8015901.raw #1 | H179: 27.394 | I179: 28.208 | J179: 10.1 | K179: 10.2 | L179: 27.967 | M179: 3.18778 | N179: 16.9 | O179: 6.66 | P179: 0.282 | Q179: 27.918 | R179: 3.19327 | S179: 0.296 | T179: 27.884 | U179: 3.19704 | V179: 10.25 | W179: 1.972 | X179: 322.8 | Y179: 1 | Z179: 0 | AA179: No
A180: Yes | C180: Transparent | D180: 4 | E180: [29.105 - 29.703] | F180: Area List #3 | G180: U1481A_27R6_55_56_QRND8015901.raw #1 | H180: 29.105 | I180: 29.703 | J180: 7.82 | K180: 8.24 | L180: 29.466 | M180: 3.02894 | N180: 9.59 | O180: 1.52 | P180: 0.138 | Q180: 29.465 | R180: 3.02898 | S180: 0.105 | T180: 29.498 | U180: 3.02572 | V180: 4.96 | W180: 0.1601 | X180: 661.9 | Y180: 1 | Z180: 0 | AA180: No
A181: Yes | C181: Transparent | D181: 1 | E181: [19.407 - 20.403] | F181: Area List #3 | G181: U1481A_27R8_28_29_QRND8016001.raw #1 | H181: 19.407 | I181: 20.403 | J181: 7.82 | K181: 9.04 | L181: 19.913 | M181: 4.4551 | N181: 13.4 | O181: 5 | P181: 0.322 | Q181: 19.901 | R181: 4.4578 | S181: 0.375 | T181: 19.931 | U181: 4.45124 | V181: 10.28 | W181: 1.877 | X181: 278 | Y181: 1 | Z181: 0 | AA181: No
A182: Yes | C182: Transparent | D182: 2 | E182: [26.298 - 26.996] | F182: Area List #3 | G182: U1481A_27R8_28_29_QRND8016001.raw #1 | H182: 26.298 | I182: 26.996 | J182: 9.53 | K182: 16 | L182: 26.724 | M182: 3.33312 | N182: 101 | O182: 88 | P182: 0.142 | Q182: 26.728 | R182: 3.33265 | S182: 0.162 | T182: 26.733 | U182: 3.33211 | V182: 23.12 | W182: 14.22 | X182: 637.5 | Y182: 1 | Z182: 0 | AA182: No
A183: Yes | C183: Transparent | D183: 3 | E183: [27.394 - 28.208] | F183: Area List #3 | G183: U1481A_27R8_28_29_QRND8016001.raw #1 | H183: 27.394 | I183: 28.208 | J183: 9.97 | K183: 10.6 | L183: 28.007 | M183: 3.18331 | N183: 17 | O183: 6.54 | P183: 0.268 | Q183: 27.967 | R183: 3.18782 | S183: 0.294 | T183: 27.909 | U183: 3.19428 | V183: 10.3 | W183: 1.922 | X183: 339.8 | Y183: 1 | Z183: 0 | AA183: No
A184: Yes | C184: Transparent | D184: 4 | E184: [29.105 - 29.703] | F184: Area List #3 | G184: U1481A_27R8_28_29_QRND8016001.raw #1 | H184: 29.105 | I184: 29.703 | J184: 7.87 | K184: 8.07 | L184: 29.492 | M184: 3.02628 | N184: 8.91 | O184: 0.907 | P184: 0.132 | Q184: 29.504 | R184: 3.02508 | S184: 0.069 | T184: 29.604 | U184: 3.01508 | V184: 4.827 | W184: 0.06262 | X184: 689.9 | Y184: 1 | Z184: 0 | AA184: No
A185: Yes | C185: Transparent | D185: 1 | E185: [19.407 - 20.403] | F185: Area List #3 | G185: U1481A_28R4_3_4_QRND8017411.raw #1 | H185: 19.407 | I185: 20.403 | J185: 8.42 | K185: 9.74 | L185: 19.852 | M185: 4.46864 | N185: 15.1 | O185: 6.08 | P185: 0.339 | Q185: 19.851 | R185: 4.46894 | S185: 0.386 | T185: 19.884 | U185: 4.46168 | V185: 11.4 | W185: 2.35 | X185: 264.4 | Y185: 1 | Z185: 0 | AA185: No
A186: Yes | C186: Transparent | D186: 2 | E186: [26.298 - 26.996] | F186: Area List #3 | G186: U1481A_28R4_3_4_QRND8017411.raw #1 | H186: 26.298 | I186: 26.996 | J186: 10.2 | K186: 13.3 | L186: 26.67 | M186: 3.33972 | N186: 94.9 | O186: 83 | P186: 0.14 | Q186: 26.678 | R186: 3.33875 | S186: 0.161 | T186: 26.682 | U186: 3.33824 | V186: 21.58 | W186: 13.37 | X186: 646.3 | Y186: 1 | Z186: 0 | AA186: No
A187: Yes | C187: Transparent | D187: 3 | E187: [27.394 - 28.208] | F187: Area List #3 | G187: U1481A_28R4_3_4_QRND8017411.raw #1 | H187: 27.394 | I187: 28.208 | J187: 10.8 | K187: 10.8 | L187: 27.959 | M187: 3.18868 | N187: 17.3 | O187: 6.57 | P187: 0.247 | Q187: 27.925 | R187: 3.19246 | S187: 0.266 | T187: 27.883 | U187: 3.19717 | V187: 10.5 | W187: 1.749 | X187: 368.2 | Y187: 1 | Z187: 0 | AA187: No
A188: Yes | C188: Transparent | D188: 4 | E188: [29.105 - 29.703] | F188: Area List #3 | G188: U1481A_28R4_3_4_QRND8017411.raw #1 | H188: 29.105 | I188: 29.703 | J188: 8.34 | K188: 8.45 | L188: 0 | M188: Infinity | N188: 0 | O188: 0 | P188: 0 | Q188: 0 | R188: Infinity | S188: 0 | T188: 29.428 | U188: 3.03279 | V188: 4.885 | W188: -0.1328 | X188: 0 | Y188: 1 | Z188: 0 | AA188: No
A189: Yes | C189: Transparent | D189: 1 | E189: [19.407 - 20.403] | F189: Area List #3 | G189: U1481A_29R2_97_98_QRND8018321.raw #1 | H189: 19.407 | I189: 20.403 | J189: 6.34 | K189: 7.85 | L189: 19.893 | M189: 4.45952 | N189: 10.6 | O189: 3.48 | P189: 0.301 | Q189: 19.871 | R189: 4.46459 | S189: 0.304 | T189: 19.883 | U189: 4.46179 | V189: 8.126 | W189: 1.057 | X189: 297.6 | Y189: 1 | Z189: 0 | AA189: No
A190: Yes | C190: Transparent | D190: 2 | E190: [26.298 - 26.996] | F190: Area List #3 | G190: U1481A_29R2_97_98_QRND8018321.raw #1 | H190: 26.298 | I190: 26.996 | J190: 9.71 | K190: 13.4 | L190: 26.681 | M190: 3.33836 | N190: 162 | O190: 150 | P190: 0.136 | Q190: 26.687 | R190: 3.33767 | S190: 0.158 | T190: 26.693 | U190: 3.33696 | V190: 31.71 | W190: 23.64 | X190: 666.4 | Y190: 1 | Z190: 0 | AA190: No
A191: Yes | C191: Transparent | D191: 3 | E191: [27.394 - 28.208] | F191: Area List #3 | G191: U1481A_29R2_97_98_QRND8018321.raw #1 | H191: 27.394 | I191: 28.208 | J191: 8.72 | K191: 10.3 | L191: 27.975 | M191: 3.18686 | N191: 19.5 | O191: 9.68 | P191: 0.199 | Q191: 27.956 | R191: 3.189 | S191: 0.27 | T191: 27.884 | U191: 3.1971 | V191: 10.34 | W191: 2.61 | X191: 456.1 | Y191: 1 | Z191: 0 | AA191: No
A192: Yes | C192: Transparent | D192: 4 | E192: [29.105 - 29.703] | F192: Area List #3 | G192: U1481A_29R2_97_98_QRND8018321.raw #1 | H192: 29.105 | I192: 29.703 | J192: 6.45 | K192: 6.7 | L192: 29.682 | M192: 3.00739 | N192: 6.66 | O192: -0.0316 | P192: 0 | Q192: 0 | R192: Infinity | S192: 9.09 | T192: 29.393 | U192: 3.03627 | V192: 3.642 | W192: -0.287 | X192: 0 | Y192: 1 | Z192: 0 | AA192: No
A193: Yes | C193: Transparent | D193: 1 | E193: [19.407 - 20.403] | F193: Area List #3 | G193: U1481A_29R5_116_117_QRND8018561.raw #1 | H193: 19.407 | I193: 20.403 | J193: 7.84 | K193: 9.26 | L193: 19.869 | M193: 4.46494 | N193: 14.1 | O193: 5.64 | P193: 0.348 | Q193: 19.863 | R193: 4.46627 | S193: 0.393 | T193: 19.889 | U193: 4.46054 | V193: 10.74 | W193: 2.219 | X193: 257.2 | Y193: 1 | Z193: 0 | AA193: No
A194: Yes | C194: Transparent | D194: 2 | E194: [26.298 - 26.996] | F194: Area List #3 | G194: U1481A_29R5_116_117_QRND8018561.raw #1 | H194: 26.298 | I194: 26.996 | J194: 10.2 | K194: 13.9 | L194: 26.678 | M194: 3.33879 | N194: 114 | O194: 102 | P194: 0.14 | Q194: 26.684 | R194: 3.33804 | S194: 0.161 | T194: 26.689 | U194: 3.33749 | V194: 24.81 | W194: 16.42 | X194: 650 | Y194: 1 | Z194: 0 | AA194: No
A195: Yes | C195: Transparent | D195: 3 | E195: [27.394 - 28.208] | F195: Area List #3 | G195: U1481A_29R5_116_117_QRND8018561.raw #1 | H195: 27.394 | I195: 28.208 | J195: 10.5 | K195: 10.6 | L195: 27.962 | M195: 3.18834 | N195: 17.6 | O195: 7.01 | P195: 0.264 | Q195: 27.921 | R195: 3.19287 | S195: 0.281 | T195: 27.873 | U195: 3.19826 | V195: 10.56 | W195: 1.973 | X195: 344.2 | Y195: 1 | Z195: 0 | AA195: No
A196: Yes | C196: Transparent | D196: 4 | E196: [29.105 - 29.703] | F196: Area List #3 | G196: U1481A_29R5_116_117_QRND8018561.raw #1 | H196: 29.105 | I196: 29.703 | J196: 7.85 | K196: 8.11 | L196: 0 | M196: Infinity | N196: 0 | O196: 0 | P196: 0 | Q196: 0 | R196: Infinity | S196: 0 | T196: 29.451 | U196: 3.03041 | V196: 4.619 | W196: -0.1524 | X196: 0 | Y196: 1 | Z196: 0 | AA196: No
A197: Yes | C197: Transparent | D197: 1 | E197: [19.407 - 20.403] | F197: Area List #3 | G197: U1481A_29R6_21_22_QRND8018591.raw #1 | H197: 19.407 | I197: 20.403 | J197: 8.34 | K197: 10.2 | L197: 19.938 | M197: 4.44961 | N197: 14.4 | O197: 5.13 | P197: 0.34 | Q197: 19.924 | R197: 4.4527 | S197: 0.384 | T197: 19.938 | U197: 4.44969 | V197: 11.18 | W197: 1.969 | X197: 263.7 | Y197: 1 | Z197: 0 | AA197: No
A198: Yes | C198: Transparent | D198: 2 | E198: [26.298 - 26.996] | F198: Area List #3 | G198: U1481A_29R6_21_22_QRND8018591.raw #1 | H198: 26.298 | I198: 26.996 | J198: 9.7 | K198: 16.9 | L198: 26.761 | M198: 3.32868 | N198: 77.2 | O198: 62.7 | P198: 0.139 | Q198: 26.763 | R198: 3.32839 | S198: 0.153 | T198: 26.767 | U198: 3.3279 | V198: 18.89 | W198: 9.605 | X198: 653.5 | Y198: 1 | Z198: 0 | AA198: No
A199: Yes | C199: Transparent | D199: 3 | E199: [27.394 - 28.208] | F199: Area List #3 | G199: U1481A_29R6_21_22_QRND8018591.raw #1 | H199: 27.394 | I199: 28.208 | J199: 11.1 | K199: 12 | L199: 28.043 | M199: 3.17925 | N199: 16.4 | O199: 4.53 | P199: 0.26 | Q199: 27.998 | R199: 3.18427 | S199: 0.278 | T199: 27.942 | U199: 3.19053 | V199: 10.67 | W199: 1.258 | X199: 349.5 | Y199: 1 | Z199: 0 | AA199: No
A200: Yes | C200: Transparent | D200: 4 | E200: [29.105 - 29.703] | F200: Area List #3 | G200: U1481A_29R6_21_22_QRND8018591.raw #1 | H200: 29.105 | I200: 29.703 | J200: 8.71 | K200: 8.51 | L200: 29.246 | M200: 3.05121 | N200: 9.06 | O200: 0.396 | P200: 0.219 | Q200: 29.306 | R200: 3.0451 | S200: 0.093 | T200: 29.353 | U200: 3.04037 | V200: 5.185 | W200: 0.03702 | X200: 416 | Y200: 1 | Z200: 0 | AA200: No
... 84 more rows

Sheet Process XRD Data
G1: Raw Peak Intensity | K1: Calculated weight percent | O1: Weight percent normalized
A2: Site | B2: Hole | C2: Core | D2: Section | E2: Interval | F2: Depth | G2: Total clay | H2: Quartz | I2: Plag | J2: Calcite | K2: Total clay | L2: Quartz | M2: Plag | N2: Calcite | O2: Total clay | P2: Quartz | Q2: Plag | R2: Calcite | T2: Lithology | U2: pc/pc+q
A3: U1481 | B3: A | C3: 2R | D3: 2 | E3: 93 | F3: 1152.12 | G3: 15.4 | H3: 89.7 | I3: 16.1 | J3: 9.63 | K3: =-52.601+($G3*14.078)+(-0.3665*$G3*$G3) -> 77.28106 | L3: =-1.5266+($H3*0.2726)+(-0.0002*$H3*$H3) -> 21.316402 | M3: =-2.1317+($I3*0.7972)+(0.0092*$I3*$I3) -> 13.087952 | N3: =-1.1422+($J3*0.2347)+(0.0072*$J3*$J3) -> 1.78566668 | O3: =($K3/($K3+$L3+$M3+$N3))*100 -> 68.10639287 | P3: =($L3/($K3+$L3+$M3+$N3))*100 -> 18.78575746 | Q3: =($M3/($K3+$L3+$M3+$N3))*100 -> 11.5341741 | R3: =($N3/($K3+$L3+$M3+$N3))*100 -> 1.573675574 | S3: =SUM($O3:$R3) -> 100 | T3: mud | U3: =$Q3/($Q3 + $P3) -> 0.3804155718
A4: U1481 | B4: A | C4: 2R | D4: 4 | E4: 2 | F4: 1153.25 | G4: 14.1 | H4: 108 | I4: 8.79 | J4: 17.5 | K4: 73.034935 | L4: 25.5814 | M4: 5.58651772 | N4: 5.17005 | O4: 66.77607815 | P4: 23.38915706 | Q4: 5.107771286 | R4: 4.726993498 | S4: 100 | T4: mud | U4: 0.1792393631
A5: U1481 | B5: A | C5: 3R | D5: 1 | E5: 113 | F5: 1160.53 | G5: 15.4 | H5: 80.2 | I5: 16.5 | J5: 9.82 | K5: 77.28106 | L5: 19.049512 | M5: 13.5268 | N5: 1.85686728 | O5: 69.17744819 | P5: 17.05199993 | Q5: 12.10839378 | R5: 1.662158103 | S5: 100 | T5: mud | U5: 0.4152342352
A6: U1481 | B6: A | C6: 3R | D6: 4 | E6: 75 | F6: 1164.17 | G6: 11.3 | H6: 165 | I6: 22.3 | J6: 7 | K6: 59.682015 | L6: 38.0074 | M6: 20.220928 | N6: 0.8535 | O6: 50.25268086 | P6: 32.00250096 | Q6: 17.02616511 | R6: 0.7186530668 | S6: 100 | T6: mud | U6: 0.347269597
A7: U1481 | B7: A | C7: 4R | D7: 3 | E7: 64 | F7: 1172.11 | G7: 14.2 | H7: 103 | I7: 17.1 | J7: 7.87 | K7: 73.40554 | L7: 24.4294 | M7: 14.190592 | N7: 1.15083468 | O7: 64.85942441 | P7: 21.58524851 | Q7: 12.53847638 | R7: 1.016850703 | S7: 100 | T7: mud | U7: 0.367441609
A8: U1481 | B8: A | C8: 5R | D8: 1 | E8: 123 | F8: 1180.13 | G8: 13 | H8: 76.2 | I8: 14.9 | J8: 16.7 | K8: 68.4745 | L8: 18.084232 | M8: 11.789072 | N8: 4.785298 | O8: 66.39429889 | P8: 17.53484735 | Q8: 11.43092932 | R8: 4.639924435 | S8: 100 | T8: mud | U8: 0.3946356921
A9: U1481 | B9: A | C9: 6R | D9: 3 | E9: 2 | F9: 1190.33 | G9: 14.2 | H9: 76.4 | I9: 15.1 | J9: 16 | K9: 73.40554 | L9: 18.132648 | M9: 12.003712 | N9: 4.4562 | O9: 67.96928835 | P9: 16.78978426 | Q9: 11.11474369 | R9: 4.126183701 | S9: 100 | U9: 0.3983132668
A10: U1481 | B10: A | C10: 6R | D10: 5 | E10: 1 | F10: 1193.23 | G10: 13.4 | H10: 89.9 | I10: 15 | J10: 19.7 | K10: 70.23546 | L10: 21.363738 | M10: 11.8963 | N10: 6.275638 | O10: 63.98354117 | P10: 19.46207243 | Q10: 10.83736621 | R10: 5.717020183 | S10: 100 | T10: mud | U10: 0.3576754783
A11: U1481 | B11: A | C11: 7R | D11: 2 | E11: 51 | F11: 1200.32 | G11: 10.2 | H11: 144 | I11: 18.7 | J11: 18.8 | K11: 52.86394 | L11: 33.5806 | M11: 15.993088 | N11: 5.814928 | O11: 48.83389543 | P11: 31.02060703 | Q11: 14.7738664 | R11: 5.371631133 | S11: 100 | T11: sand | U11: 0.322612431
A12: U1481 | B12: A | C12: 7R | D12: 2 | E12: 102 | F12: 1200.83 | G12: 13.6 | H12: 83 | I12: 15.6 | J12: 16.2 | K12: 71.07196 | L12: 19.7214 | M12: 12.543532 | N12: 4.549508 | O12: 65.87666286 | P12: 18.27978318 | Q12: 11.62661095 | R12: 4.216943007 | S12: 100 | T12: mud | U12: 0.3887667267
A13: U1481 | B13: A | C13: 7R | D13: 3 | E13: 42 | F13: 1201.53 | G13: 14.4 | H13: 78.2 | I13: 14.6 | J13: 15.2 | K13: 74.12476 | L13: 18.567672 | M13: 11.468492 | N13: 4.088728 | O13: 68.475749 | P13: 17.15263898 | Q13: 10.59448394 | R13: 3.777128078 | S13: 100 | T13: mud | U13: 0.381822792
A14: U1481 | B14: A | C14: 7R | D14: 3 | E14: 89 | F14: 1202 | G14: 8.09 | H14: 272 | I14: 34.4 | J14: 25.5 | K14: 37.30329135 | L14: 57.8238 | M14: 36.178892 | N14: 9.52445 | O14: 26.48808959 | P14: 41.059165 | Q14: 25.68968307 | R14: 6.763062339 | S14: 100 | T14: sand | U14: 0.3848708077
A15: U1481 | B15: A | C15: 8R | D15: 1 | E15: 17 | F15: 1208.17 | G15: 13.7 | H15: 75.4 | I15: 15 | J15: 14.7 | K15: 71.479215 | L15: 17.890408 | M15: 11.8963 | N15: 3.863738 | O15: 67.99148244 | P15: 17.0174695 | Q15: 11.31583598 | R15: 3.675212079 | S15: 100 | T15: mud | U15: 0.3993828388
A16: U1481 | B16: A | C16: 9R | D16: 2 | E16: 99 | F16: 1220.28 | G16: 9.75 | H16: 179 | I16: 29 | J16: 23.3 | K16: 49.81909375 | L16: 40.8606 | M16: 28.7243 | N16: 8.235118 | O16: 39.03121313 | P16: 32.01260134 | Q16: 22.50430891 | R16: 6.451876613 | S16: 100 | T16: sand | U16: 0.4127950173
A17: U1481 | B17: A | C17: 9R | D17: 3 | E17: 85 | F17: 1221.37 | G17: 9.6 | H17: 155 | I17: 21 | J17: 21.5 | K17: 48.77116 | L17: 35.9214 | M17: 18.6667 | N17: 7.23205 | O17: 44.10035472 | P17: 32.48121394 | Q17: 16.87899348 | R17: 6.539437864 | S17: 100 | T17: sand | U17: 0.3419554811
A18: U1481 | B18: A | C18: 6R | D18: 3 | E18: 2 | F18: 1190.33 | G18: 14.2 | H18: 76.4 | I18: 15.1 | J18: 16 | K18: 73.40554 | L18: 18.132648 | M18: 12.003712 | N18: 4.4562 | O18: 67.96928835 | P18: 16.78978426 | Q18: 11.11474369 | R18: 4.126183701 | S18: 100 | T18: mud | U18: 0.3983132668
A19: U1481 | B19: A | C19: 10R | D19: 1 | E19: 51 | F19: 1228.01 | G19: 10.3 | H19: 175 | I19: 22.3 | J19: 8.73 | K19: 53.520415 | L19: 40.0534 | M19: 20.220928 | N19: 1.45546388 | O19: 46.4384546 | P19: 34.75343002 | Q19: 17.54524226 | R19: 1.262873117 | S19: 100 | T19: sand | U19: 0.3354816001
A20: U1481 | B20: A | C20: 10R | D20: 3 | E20: 70 | F20: 1230.22 | G20: 14.7 | H20: 80.9 | I20: 14.7 | J20: 13.5 | K20: 75.148615 | L20: 19.217778 | M20: 11.575168 | N20: 3.33845 | O20: 68.7670273 | P20: 17.58581265 | Q20: 10.59220977 | R20: 3.054950278 | S20: 100 | T20: mud | U20: 0.3759032345
A21: U1481 | B21: A | C21: 11R | D21: 1 | E21: 131 | F21: 1238.51 | G21: 11.6 | H21: 127 | I21: 15.8 | J21: 15.7 | K21: 61.38756 | L21: 29.8678 | M21: 12.760748 | N21: 4.317318 | O21: 56.66539153 | P21: 27.57025334 | Q21: 11.77914192 | R21: 3.985213206 | S21: 100 | T21: mud | U21: 0.2993474702
A22: U1481 | B22: A | C22: 12R | D22: 2 | E22: 38 | F22: 1248.31 | G22: 14.1 | H22: 103 | I22: 16.1 | J22: 11.9 | K22: 73.034935 | L22: 24.4294 | M22: 13.087952 | N22: 2.670322 | O22: 64.50561036 | P22: 21.57643267 | Q22: 11.55948632 | R22: 2.358470648 | S22: 100 | T22: mud | U22: 0.3488506332
A23: U1481 | B23: A | C23: 13R | D23: 1 | E23: 6 | F23: 1256.76 | G23: 13.1 | H23: 91.6 | I23: 15.6 | J23: 15.9 | K23: 68.925735 | L23: 21.765448 | M23: 12.543532 | N23: 4.409762 | O23: 64.03090704 | P23: 20.21975359 | Q23: 11.6527409 | R23: 4.096598472 | S23: 100 | T23: mud | U23: 0.3656049233
A24: U1481 | B24: A | C24: 14R | D24: 1 | E24: 126 | F24: 1267.66 | G24: 13.1 | H24: 109 | I24: 17.1 | J24: 13.4 | K24: 68.925735 | L24: 25.8106 | M24: 14.190592 | N24: 3.295612 | O24: 61.41879841 | P24: 22.99947963 | Q24: 12.64504629 | R24: 2.936675671 | S24: 100 | T24: mud | U24: 0.3547542283
A25: U1481 | B25: A | C25: 15R | D25: 2 | E25: 100 | F25: 1278.43 | G25: 13.4 | H25: 100 | I25: 15.7 | J25: 16.1 | K25: 70.23546 | L25: 23.7334 | M25: 12.652048 | N25: 4.502782 | O25: 63.20475859 | P25: 21.3576421 | Q25: 11.38555424 | R25: 4.052045068 | S25: 100 | T25: mud | U25: 0.3477227489
A26: U1481 | B26: A | C26: 15R | D26: 3 | E26: 67 | F26: 1279.14 | G26: 11.7 | H26: 154 | I26: 17.2 | J26: 11.9 | K26: 61.941415 | L26: 35.7106 | M26: 14.301868 | N26: 2.670322 | O26: 54.03868668 | P26: 31.15450179 | Q26: 12.47717967 | R26: 2.329631861 | S26: 100 | T26: mud | U26: 0.2859660515
A27: U1481 | B27: A | C27: 16R | D27: 3 | E27: 127 | F27: 1289.74 | G27: 12 | H27: 94.9 | I27: 15.2 | J27: 24.8 | K27: 63.559 | L27: 22.541938 | M27: 12.111308 | N27: 9.106648 | O27: 59.22442697 | P27: 21.0046313 | Q27: 11.28534552 | R27: 8.485596208 | S27: 100 | T27: mud | U27: 0.3494999574
A28: U1481 | B28: A | C28: 16R | D28: 4 | E28: 85 | F28: 1290.83 | G28: 14.7 | H28: 79.7 | I28: 16.1 | J28: 0 | K28: 75.148615 | L28: 18.929202 | M28: 13.087952 | N28: 0 | O28: 70.1237118 | P28: 17.66347797 | Q28: 12.21281023 | R28: 0 | S28: 100 | T28: mud | U28: 0.4087793687
A29: U1481 | B29: A | C29: 17R | D29: 1 | E29: 14 | F29: 1295.74 | G29: 14 | H29: 80.1 | I29: 15.3 | J29: 10.7 | K29: 72.657 | L29: 19.025458 | M29: 12.219088 | N29: 2.193418 | O29: 68.48298662 | P29: 17.93247981 | Q29: 11.51712347 | R29: 2.067410099 | S29: 100 | T29: mud | U29: 0.3910790702
A30: U1481 | B30: A | C30: 18R | D30: 1 | E30: 111 | F30: 1306.41 | G30: 14.2 | H30: 100 | I30: 16.3 | J30: 10.8 | K30: 73.40554 | L30: 23.7334 | M30: 13.307008 | N30: 2.232368 | O30: 65.14611028 | P30: 21.06297009 | Q30: 11.80973276 | R30: 1.981186868 | S30: 100 | T30: mud | U30: 0.3592565179
A31: U1481 | B31: A | C31: 19R | D31: 2 | E31: 125 | F31: 1317.61 | G31: 15 | H31: 68.7 | I31: 14.8 | J31: 8.73 | K31: 76.1065 | L31: 16.257082 | M31: 11.682028 | N31: 1.45546388 | O31: 72.13812827 | P31: 15.40939955 | Q31: 11.07289961 | R31: 1.379572574 | S31: 100 | T31: mud | U31: 0.4181245573
A32: U1481 | B32: A | C32: 19R | D32: 5 | E32: 80 | F32: 1320.95 | G32: 11.7 | H32: 128 | I32: 18 | J32: 14.4 | K32: 61.941415 | L32: 30.0894 | M32: 15.1987 | N32: 3.730472 | O32: 55.82319958 | P32: 27.11734276 | Q32: 13.69746015 | R32: 3.36199751 | S32: 100 | T32: mud | U32: 0.3356003012
A33: U1481 | B33: A | C33: 20R | D33: 1 | E33: 126 | F33: 1326.06 | G33: 11.2 | H33: 126 | I33: 17.9 | J33: 18.1 | K33: 59.09884 | L33: 29.6458 | M33: 15.085952 | N33: 5.464662 | O33: 54.07264985 | P33: 27.12450808 | Q33: 13.80293421 | R33: 4.999907864 | S33: 100 | T33: mud | U33: 0.33725377
A34: U1481 | B34: A | C34: 21R | D34: 2 | E34: 6 | F34: 1335.63 | G34: 12.2 | H34: 118 | I34: 17.8 | J34: 15.8 | K34: 64.60074 | L34: 27.8554 | M34: 14.973388 | N34: 4.363468 | O34: 57.78603518 | P34: 24.9169456 | Q34: 13.39385161 | R34: 3.903167601 | S34: 100 | T34: mud | U34: 0.3496103602
A35: U1481 | B35: A | C35: 22R | D35: 2 | E35: 63 | F35: 1345.98 | G35: 12.6 | H35: 98.1 | I35: 16 | J35: 16 | K35: =-52.601+($G35*14.078)+(-0.3665*$G35*$G35) -> 66.59626 | L35: =-1.5266+($H35*0.2726)+(-0.0002*$H35*$H35) -> 23.290738 | M35: =-2.1317+($I35*0.7972)+(0.0092*$I35*$I35) -> 12.9787 | N35: =-1.1422+($J35*0.2347)+(0.0072*$J35*$J35) -> 4.4562 | O35: =($K35/($K35+$L35+$M35+$N35))*100 -> 62.0528161 | P35: =($L35/($K35+$L35+$M35+$N35))*100 -> 21.70175745 | Q35: =($M35/($K35+$L35+$M35+$N35))*100 -> 12.09324494 | R35: =($N35/($K35+$L35+$M35+$N35))*100 -> 4.152181505 | S35: =SUM($O35:$R35) -> 100 | T35: mud | U35: =$Q35/($Q35 + $P35) -> 0.3578412216
A36: U1481 | B36: A | C36: 22R | D36: 3 | E36: 128 | F36: 1347.48 | G36: 12.4 | H36: 114 | I36: 17.6 | J36: 16.3 | K36: 65.61316 | L36: 26.9506 | M36: 14.748812 | N36: 4.596378 | O36: 58.63084231 | P36: 24.08261359 | Q36: 13.1792962 | R36: 4.107247901 | S36: 100 | T36: mud | U36: 0.3536935245
A37: U1481 | B37: A | C37: 23R | D37: 1 | E37: 33 | F37: 1354.33 | G37: 14.5 | H37: 77.2 | I37: 15.1 | J37: 14.2 | K37: 74.473375 | L37: 18.326152 | M37: 12.003712 | N37: 3.642348 | O37: 68.67349522 | P37: 16.89893753 | Q37: 11.0688801 | R37: 3.358687154 | S37: 100 | T37: mud | U37: 0.3957720351
A38: U1481 | B38: A | C38: 23R | D38: 4 | E38: 83 | F38: 1358.54 | G38: 8.61 | H38: 216 | I38: 22.5 | J38: 14.4 | K38: 41.44116535 | L38: 48.0238 | M38: 20.4628 | N38: 3.730472 | O38: 36.46120714 | P38: 42.25281081 | Q38: 18.00379847 | R38: 3.282183577 | S38: 100 | T38: sand | U38: 0.2987854558
A39: U1481 | B39: A | C39: 23R | D39: 5 | E39: 9 | F39: 1358.96 | G39: 14 | H39: 91.3 | I39: 15.2 | J39: 13.9 | K39: 72.657 | L39: 21.694642 | M39: 12.111308 | N39: 3.511242 | O39: 66.06731878 | P39: 19.72703014 | Q39: 11.01286382 | R39: 3.192787268 | S39: 100 | T39: mud | U39: 0.3582596555
A40: U1481 | B40: A | C40: 24R | D40: 1 | E40: 27 | F40: 1363.97 | G40: 14.7 | H40: 106 | I40: 16.3 | J40: 0 | K40: 75.148615 | L40: 25.1218 | M40: 13.307008 | N40: 0 | O40: 66.16509956 | P40: 22.11865645 | Q40: 11.71624399 | R40: 0 | S40: 100 | T40: mud | U40: 0.3462768869
A41: U1481 | B41: A | C41: 24R | D41: 3 | E41: 79 | F41: 1367.42 | G41: 13.4 | H41: 126 | I41: 17.3 | J41: 8.16 | K41: 70.23546 | L41: 29.6458 | M41: 14.413328 | N41: 1.25236832 | O41: 60.78520996 | P41: 25.65692853 | Q41: 12.47400058 | R41: 1.083860934 | S41: 100 | T41: mud | U41: 0.327136025
A42: U1481 | B42: A | C42: 24R | D42: 6 | E42: 90 | F42: 1371.33 | G42: 16.3 | H42: 86 | I42: 15.4 | J42: 9.42 | K42: 79.495015 | L42: 20.4378 | M42: 12.327052 | N42: 1.70757608 | O42: 69.75238968 | P42: 17.93301617 | Q42: 10.8162925 | R42: 1.49830165 | S42: 100 | T42: mud | U42: 0.3762279164
A43: U1481 | B43: A | C43: 24R | D43: 7 | E43: 97 | F43: 1372.41 | G43: 14.2 | H43: 111 | I43: 17.4 | J43: 8.19 | K43: 73.40554 | L43: 26.2678 | M43: 14.524972 | N43: 1.26294092 | O43: 63.57590806 | P43: 22.75031609 | Q43: 12.57995356 | R43: 1.093822289 | S43: 100 | T43: mud | U43: 0.3560672955
A44: U1481 | B44: A | C44: 25R | D44: 1 | E44: 26 | F44: 1373.66 | G44: 15.4 | H44: 89.4 | I44: 16.5 | J44: 9.56 | K44: 77.28106 | L44: 21.245368 | M44: 13.5268 | N44: 1.75956592 | O44: 67.90190921 | P44: 18.6669418 | Q44: 11.88513131 | R44: 1.546017683 | S44: 100 | T44: mud | U44: 0.3890122698
A45: U1481 | B45: A | C45: 25R | D45: 2 | E45: 32 | F45: 1374.73 | G45: 13.9 | H45: 123 | I45: 17.2 | J45: 7.93 | K45: 72.271735 | L45: 28.9774 | M45: 14.301868 | N45: 1.17174228 | O45: 61.91743934 | P45: 24.8258383 | Q45: 12.25285437 | R45: 1.003867993 | S45: 100 | T45: mud | U45: 0.3304554042
A46: U1481 | B46: A | C46: 26R | D46: 1 | E46: 66 | F46: 1375.76 | G46: 14.2 | H46: 76 | I46: 15.2 | J46: 9.04 | K46: 73.40554 | L46: 18.0358 | M46: 12.111308 | N46: 1.56788352 | O46: 69.82987903 | P46: 17.15725724 | Q46: 11.52135346 | R46: 1.491510267 | S46: 100 | T46: mud | U46: 0.401740293
A47: U1481 | B47: A | C47: 27R | D47: 6 | E47: 55 | F47: 1389.59 | G47: 13.6 | H47: 108 | I47: 16.9 | J47: 9.59 | K47: 71.07196 | L47: 25.5814 | M47: 13.968592 | N47: 1.77074332 | O47: 63.2353907 | P47: 22.76073185 | Q47: 12.42838065 | R47: 1.575496802 | S47: 100 | T47: mud | U47: 0.3531882383
A48: U1481 | B48: A | C48: 27R | D48: 8 | E48: 28 | F48: 1391.52 | G48: 13.4 | H48: 101 | I48: 17 | J48: 8.91 | K48: 70.23546 | L48: 23.9658 | M48: 14.0795 | N48: 1.52057132 | O48: 63.96594573 | P48: 21.82651131 | Q48: 12.82270427 | R48: 1.384838692 | S48: 100 | T48: mud | U48: 0.3700719931
A49: U1481 | B49: A | C49: 28R | D49: 4 | E49: 3 | F49: 1396.01 | G49: 15.1 | H49: 94.9 | I49: 17.3 | J49: 0 | K49: 76.411135 | L49: 22.541938 | M49: 14.413328 | N49: 0 | O49: 67.40192361 | P49: 19.88414363 | Q49: 12.71393276 | R49: 0 | S49: 100 | T49: mud | U49: 0.3900209513
A50: U1481 | B50: A | C50: 29R | D50: 2 | E50: 97 | F50: 1404.72 | G50: 10.6 | H50: 162 | I50: 19.5 | J50: 6.66 | K50: 55.44586 | L50: 37.3858 | M50: 16.912 | N50: 0.74026232 | O50: 50.18455069 | P50: 33.83822661 | Q50: 15.30720456 | R50: 0.6700181388 | S50: 100 | T50: mud | U50: 0.3114674996
A51: U1481 | B51: A | C51: 29R | D51: 5 | E51: 116 | F51: 1408.72 | G51: 14.1 | H51: 114 | I51: 17.6 | J51: 0 | K51: 73.034935 | L51: 26.9506 | M51: 14.748812 | N51: 0 | O51: 63.65568542 | P51: 23.48956586 | Q51: 12.85474872 | R51: 0 | S51: 100 | T51: mud | U51: 0.3536935245
A52: U1481 | B52: A | C52: 29R | D52: 6 | E52: 21 | F52: 1409.16 | G52: 14.4 | H52: 77.2 | I52: 16.4 | J52: 9.06 | K52: 74.12476 | L52: 18.326152 | M52: 13.416812 | N52: 1.57518392 | O52: 68.9899049 | P52: 17.05664185 | Q52: 12.48738726 | R52: 1.466065979 | S52: 100 | T52: mud | U52: 0.4226704223
A53: U1481 | B53: A | C53: 30R | D53: 3 | E53: 118 | F53: 1416.23 | G53: 14.1 | H53: 114 | I53: 17.7 | J53: 8.36 | K53: 73.034935 | L53: 26.9506 | M53: 14.861008 | N53: 1.32309712 | O53: 62.86921 | P53: 23.19934879 | Q53: 12.79250584 | R53: 1.13893537 | S53: 100 | T53: mud | U53: 0.3554278037
A54: U1481 | B54: A | C54: 30R | D54: 5 | E54: 96 | F54: 1418.74 | G54: 13.8 | H54: 114 | I54: 17.9 | J54: 8.06 | K54: 71.87914 | L54: 26.9506 | M54: 15.085952 | N54: 1.21721992 | O54: 62.43144449 | P54: 23.40825013 | Q54: 13.10307517 | R54: 1.057230204 | S54: 100 | T54: mud | U54: 0.3588770078
A55: U1481 | B55: A | C55: 30R | D55: 6 | E55: 137 | F55: 1420.39 | G55: 16 | H55: 94.7 | I55: 15.8 | J55: 8.82 | K55: 78.823 | L55: 22.495002 | M55: 12.760748 | N55: 1.48795928 | O55: 68.20562815 | P55: 19.46494985 | Q55: 11.04188921 | R55: 1.287532793 | S55: 100 | T55: mud | U55: 0.3619479943
A56: U1481 | B56: A | C56: 31R | D56: 1 | E56: 52 | F56: 1422.52 | G56: 14.3 | H56: 100 | I56: 16 | J56: 0 | K56: 73.768815 | L56: 23.7334 | M56: 12.9787 | N56: 0 | O56: 66.77064088 | P56: 21.48190029 | Q56: 11.74745883 | R56: 0 | S56: 100 | T56: mud | U56: 0.353526494
A57: U1481 | B57: A | C57: 31R | D57: 5 | E57: 63 | F57: 1428.24 | G57: 13.6 | H57: 106 | I57: 15.4 | J57: 7.36 | K57: 71.07196 | L57: 25.1218 | M57: 12.327052 | N57: 0.97521312 | O57: 64.90825573 | P57: 22.94311595 | Q57: 11.2579904 | R57: 0.8906379194 | S57: 100 | T57: mud | U57: 0.3291703575
A58: U1481 | B58: A | C58: 31R | D58: 6 | E58: 64 | F58: 1429.72 | G58: 13.6 | H58: 94.2 | I58: 16.5 | J58: 0 | K58: 71.07196 | L58: 22.377592 | M58: 13.5268 | N58: 0 | O58: 66.43707574 | P58: 20.91826051 | Q58: 12.64466375 | R58: 0 | S58: 100 | T58: mud | U58: 0.3767449954
A59: U1481 | B59: A | C59: 32R | D59: 4 | E59: 91 | F59: 1436.42 | G59: 15.1 | H59: 111 | I59: 15.6 | J59: 8.53 | K59: 76.411135 | L59: 26.2678 | M59: 12.543532 | N59: 1.38366948 | O59: 65.52925713 | P59: 22.5269448 | Q59: 10.75718001 | R59: 1.186618065 | S59: 100 | T59: mud | U59: 0.323192515
A60: U1481 | B60: A | C60: 33R | D60: 6 | E60: 88 | F60: 1448.96 | G60: 14.3 | H60: 117 | I60: 16.5 | J60: 7.75 | K60: 73.768815 | L60: 27.6298 | M60: 13.5268 | N60: 1.109175 | O60: 63.57484867 | P60: 23.8116927 | Q60: 11.65755832 | R60: 0.9559003052 | S60: 100 | T60: mud | U60: 0.3286666051
A61: U1481 | B61: A | C61: 34R | D61: 2 | E61: 0 | F61: 1452.43 | G61: 14.9 | H61: 102 | I61: 16.9 | J61: 8.6 | K61: 75.794535 | L61: 24.1978 | M61: 13.968592 | N61: 1.408732 | O61: 65.69711279 | P61: 20.97414538 | Q61: 12.10768249 | R61: 1.221059343 | S61: 100 | T61: mud | U61: 0.3659919439
A62: U1481 | B62: A | C62: 34R | D62: 5 | E62: 38 | F62: 1457.17 | G62: 14.6 | H62: 94 | I62: 14.5 | J62: 7.74 | K62: 74.81466 | L62: 22.3306 | M62: 11.362 | N62: 1.10571272 | O62: 68.25347232 | P62: 20.37222369 | Q62: 10.36556141 | R62: 1.008742572 | S62: 100 | T62: mud | U62: 0.3372253848
A63: U1481 | B63: A | C63: 35R | D63: 1 | E63: 109 | F63: 1461.99 | G63: 14.1 | H63: 54.6 | I63: 13.3 | J63: 9.14 | K63: 73.034935 | L63: 12.761128 | M63: 10.098448 | N63: 1.60444312 | O63: 74.90842918 | P63: 13.08847681 | Q63: 10.35749367 | R63: 1.645600339 | S63: 100 | T63: mud | U63: 0.4417600746
A64: U1481 | B64: A | C64: 35R | D64: 4 | E64: 61 | F64: 1465.36 | G64: 14.5 | H64: 99.9 | I64: 16.4 | J64: 8.2 | K64: 74.473375 | L64: 23.710138 | M64: 13.416812 | N64: 1.266468 | O64: 65.98342437 | P64: 21.00718676 | Q64: 11.88729798 | R64: 1.122090888 | S64: 100 | T64: mud | U64: 0.361376628
A65: U1481 | B65: A | C65: 35R | D65: 8 | E65: 91 | F65: 1470.15 | G65: 14.8 | H65: 86 | I65: 15.7 | J65: 8.88 | K65: 75.47524 | L65: 20.4378 | M65: 12.652048 | N65: 1.50968768 | O65: 68.56724398 | P65: 18.56719659 | Q65: 11.49404841 | R65: 1.371511021 | S65: 100 | T65: mud | U65: 0.3823543704
A66: U1481 | B66: A | C66: 36R | D66: 4 | E66: 102 | F66: 1475.59 | G66: 8.68 | H66: 247 | I66: 30.7 | J66: 0 | K66: 41.9830504 | L66: 53.6038 | M66: 31.013248 | N66: 0 | O66: 33.16194137 | P66: 42.34104134 | Q66: 24.49701729 | R66: 0 | S66: 100 | T66: sand | U66: 0.3665129987
A67: U1481 | B67: A | C67: 36R | D67: 5 | E67: 49 | F67: 1476.35 | G67: 12.7 | H67: 140 | I67: 18.4 | J67: 7.29 | K67: =-52.601+($G67*14.078)+(-0.3665*$G67*$G67) -> 67.076815 | L67: =-1.5266+($H67*0.2726)+(-0.0002*$H67*$H67) -> 32.7174 | M67: =-2.1317+($I67*0.7972)+(0.0092*$I67*$I67) -> 15.651532 | N67: =-1.1422+($J67*0.2347)+(0.0072*$J67*$J67) -> 0.95140052 | O67: =($K67/($K67+$L67+$M67+$N67))*100 -> 57.62754194 | P67: =($L67/($K67+$L67+$M67+$N67))*100 -> 28.10842078 | Q67: =($M67/($K67+$L67+$M67+$N67))*100 -> 13.44666286 | R67: =($N67/($K67+$L67+$M67+$N67))*100 -> 0.8173744291 | S67: =SUM($O67:$R67) -> 100 | T67: mud | U67: =$Q67/($Q67 + $P67) -> 0.3235864708
A68: U1481 | B68: A | C68: 37R | D68: 2 | E68: 24 | F68: 1482.1 | G68: 13.4 | H68: 127 | I68: 17.9 | J68: 0 | K68: 70.23546 | L68: 29.8678 | M68: 15.085952 | N68: 0 | O68: 60.97399121 | P68: 25.9293379 | Q68: 13.09667089 | R68: 0 | S68: 100 | T68: mud | U68: 0.335588273
A69: U1481 | B69: A | C69: 37R | D69: 2 | E69: 81 | F69: 1482.67 | G69: 13.3 | H69: 126 | I69: 17.6 | J69: 7.8 | K69: 69.806215 | L69: 29.6458 | M69: 14.748812 | N69: 1.126508 | O69: 60.52876796 | P69: 25.70578779 | Q69: 12.7886524 | R69: 0.9767918421 | S69: 100 | T69: mud | U69: 0.3322207659
A70: U1481 | B70: A | C70: 37R | D70: 6 | E70: 100 | F70: 1487.66 | G70: 11.2 | H70: 160 | I70: 20.5 | J70: 7.46 | K70: 59.09884 | L70: 36.9694 | M70: 18.0772 | N70: 1.00935352 | O70: 51.32121572 | P70: 32.10409126 | Q70: 15.69817412 | R70: 0.8765188918 | S70: 100 | T70: mud | U70: 0.3283981209
A71: U1481 | B71: A | C71: 38R | D71: 2 | E71: 62 | F71: 1492.21 | G71: 10.4 | H71: 188 | I71: 24.4 | J71: 6.37 | K71: 54.16956 | L71: 42.6534 | M71: 22.797292 | N71: 0.64499268 | O71: 45.04174098 | P71: 35.4661067 | Q71: 18.95584386 | R71: 0.5363084586 | S71: 100 | T71: mud | U71: 0.348312467
A72: U1481 | B72: A | C72: 38R | D72: 6 | E72: 26 | F72: 1496.89 | G72: 14.4 | H72: 97.5 | I72: 17.1 | J72: 8.26 | K72: 74.12476 | L72: 23.15065 | M72: 14.190592 | N72: 1.28766072 | O72: 65.74044533 | P72: 20.53206028 | Q72: 12.58548207 | R72: 1.14201232 | S72: 100 | T72: mud | U72: 0.3800246387

Sheet Depths Reference Sheet
A1: LORE Label ID | B1: Top depth CSF-A (m) | C1: Temporary Storage Concatenated Values | D1: Paste XRD LORE Report 1 row below, without headers | E1: Site | F1: Hole | G1: Core | H1: Type | I1: Sect | J1: A/W | K1: Top offset (cm) | L1: Bottom offset (cm) | M1: Top depth CSF-A (m) | N1: Bottom depth CSF-A (m) | O1: Top depth CSF-B (m) | P1: Bottom depth CSF-B (m) | Q1: Length (cm) | R1: Volume (cm3) | S1: Sample type | T1: Test | U1: Request Code | V1: Request number | W1: Sample name | X1: Text ID | Y1: Date sample logged | Z1: Sample entered by | AA1: Location | AB1: Comments | AC1: Label identifier
A2: U1481A2R293 | B2: 1152.12 | C2: =CONCATENATE(E2,F2,G2,H2,I2,K2) -> U1481A2R293 | D2: 362 | E2: U1481 | F2: A | G2: 2 | H2: R | I2: 2 | J2: W | K2: 93 | L2: 94 | M2: 1152.12 | N2: 1152.13 | O2: 1152.12 | P2: 1152.13 | Q2: 36274291 | R2: 36274341 | S2: 36274251 | T2: 2016-09-28T04:29:35 | U2: QRND7995051 | V2: 100365581
A3: U1481A2R42 | B3: 1153.25 | C3: =CONCATENATE(E3,F3,G3,H3,I3,K3) -> U1481A2R42 | D3: 362 | E3: U1481 | F3: A | G3: 2 | H3: R | I3: 4 | J3: W | K3: 2 | L3: 3 | M3: 1153.25 | N3: 1153.26 | O3: 1153.25 | P3: 1153.26 | Q3: 36274261 | R3: 36274281 | S3: 36274241 | T3: 2016-09-28T04:29:35 | U3: QRND7995071 | V3: 100365571
A4: U1481A3R1113 | B4: 1160.53 | C4: U1481A3R1113 | D4: 362 | E4: U1481 | F4: A | G4: 3 | H4: R | I4: 1 | J4: W | K4: 113 | L4: 114 | M4: 1160.53 | N4: 1160.54 | O4: 1160.53 | P4: 1160.54 | Q4: 36274301 | R4: 36274361 | S4: 36274271 | T4: 2016-09-28T04:29:36 | U4: QRND7996401 | V4: 100365591
A5: U1481A3R475 | B5: 1164.17 | C5: U1481A3R475 | D5: 362 | E5: U1481 | F5: A | G5: 3 | H5: R | I5: 4 | J5: W | K5: 75 | L5: 76 | M5: 1164.17 | N5: 1164.18 | O5: 1164.17 | P5: 1164.18 | Q5: 36274351 | R5: 36274381 | S5: 36274311 | T5: 2016-09-28T04:29:38 | U5: QRND7996561 | V5: 100365601
A6: U1481A4R364 | B6: 1172.11 | C6: U1481A4R364 | D6: 362 | E6: U1481 | F6: A | G6: 4 | H6: R | I6: 3 | J6: W | K6: 64 | L6: 65 | M6: 1172.11 | N6: 1172.12 | O6: 1172.11 | P6: 1172.12 | Q6: 36274371 | R6: 36274391 | S6: 36274321 | T6: 2016-09-28T04:29:38 | U6: QRND7997511 | V6: 100365611
A7: U1481A5R1123 | B7: 1180.13 | C7: U1481A5R1123 | D7: 362 | E7: U1481 | F7: A | G7: 5 | H7: R | I7: 1 | J7: W | K7: 123 | L7: 124 | M7: 1180.13 | N7: 1180.14 | O7: 1180.13 | P7: 1180.14 | Q7: 36274401 | R7: 36274461 | S7: 36274331 | T7: 2016-09-28T04:29:39 | U7: QRND7998171 | V7: 100365621
A8: U1481A6R32 | B8: 1190.33 | C8: U1481A6R32 | D8: 362 | E8: U1481 | F8: A | G8: 6 | H8: R | I8: 3 | J8: W | K8: 2 | L8: 3 | M8: 1190.33 | N8: 1190.34 | O8: 1190.33 | P8: 1190.34 | Q8: 36274541 | R8: 36274611 | S8: 36274411 | T8: 2016-09-28T04:29:42 | U8: QRND7999161 | V8: 100365641
A9: U1481A6R51 | B9: 1193.23 | C9: U1481A6R51 | D9: 362 | E9: U1481 | F9: A | G9: 6 | H9: R | I9: 5 | J9: W | K9: 1 | L9: 2 | M9: 1193.23 | N9: 1193.24 | O9: 1193.23 | P9: 1193.24 | Q9: 36274531 | R9: 36274631 | S9: 36274451 | T9: 2016-09-28T04:29:42 | U9: QRND7999271 | V9: 100365631
A10: U1481A7R251 | B10: 1200.32 | C10: U1481A7R251 | D10: 362 | E10: U1481 | F10: A | G10: 7 | H10: R | I10: 2 | J10: W | K10: 51 | L10: 52 | M10: 1200.32 | N10: 1200.33 | O10: 1200.32 | P10: 1200.33 | Q10: 36274501 | R10: 36274601 | S10: 36274431 | T10: 2016-09-28T04:29:42 | U10: QRND8000131 | V10: 100365661
A11: U1481A7R2102 | B11: 1200.83 | C11: U1481A7R2102 | D11: 362 | E11: U1481 | F11: A | G11: 7 | H11: R | I11: 2 | J11: W | K11: 102 | L11: 103 | M11: 1200.83 | N11: 1200.84 | O11: 1200.83 | P11: 1200.84 | Q11: 36274551 | R11: 36274641 | S11: 36274421 | T11: 2016-09-28T04:29:42 | U11: QRND7999901 | V11: 100365651
A12: U1481A7R342 | B12: 1201.53 | C12: U1481A7R342 | D12: 362 | E12: U1481 | F12: A | G12: 7 | H12: R | I12: 3 | J12: W | K12: 42 | L12: 43 | M12: 1201.53 | N12: 1201.54 | O12: 1201.53 | P12: 1201.54 | Q12: 36274561 | R12: 36274651 | S12: 36274471 | T12: 2016-09-28T04:29:43 | U12: QRND7999971 | V12: 100365681
A13: U1481A7R389 | B13: 1202 | C13: U1481A7R389 | D13: 362 | E13: U1481 | F13: A | G13: 7 | H13: R | I13: 3 | J13: W | K13: 89 | L13: 90 | M13: 1202 | N13: 1202.01 | O13: 1202 | P13: 1202.01 | Q13: 36274511 | R13: 36274591 | S13: 36274441 | T13: 2016-09-28T04:29:42 | U13: QRND7999981 | V13: 100365671
A14: U1481A8R117 | B14: 1208.17 | C14: U1481A8R117 | D14: 362 | E14: U1481 | F14: A | G14: 8 | H14: R | I14: 1 | J14: W | K14: 17 | L14: 18 | M14: 1208.17 | N14: 1208.18 | O14: 1208.17 | P14: 1208.18 | Q14: 36274571 | R14: 36274661 | S14: 36274481 | T14: 2016-09-28T04:29:44 | U14: QRND8000231 | V14: 100365691
A15: U1481A9R299 | B15: 1220.28 | C15: U1481A9R299 | D15: 362 | E15: U1481 | F15: A | G15: 9 | H15: R | I15: 2 | J15: W | K15: 99 | L15: 100 | M15: 1220.28 | N15: 1220.29 | O15: 1220.28 | P15: 1220.29 | Q15: 36274581 | R15: 36274681 | S15: 36274491 | T15: 2016-09-28T04:29:44 | U15: QRND8001021 | V15: 100365701
A16: U1481A9R385 | B16: 1221.37 | C16: U1481A9R385 | D16: 362 | E16: U1481 | F16: A | G16: 9 | H16: R | I16: 3 | J16: W | K16: 85 | L16: 86 | M16: 1221.37 | N16: 1221.38 | O16: 1221.37 | P16: 1221.38 | Q16: 36274621 | R16: 36274671 | S16: 36274521 | T16: 2016-09-28T04:29:45 | U16: QRND8001031 | V16: 100365711
A17: U1481A10R151 | B17: 1228.01 | C17: U1481A10R151 | D17: 362 | E17: U1481 | F17: A | G17: 10 | H17: R | I17: 1 | J17: W | K17: 51 | L17: 52 | M17: 1228.01 | N17: 1228.02 | O17: 1228.01 | P17: 1228.02 | Q17: 36314151 | R17: 36314301 | S17: 36314021 | T17: 2016-09-29T04:40:29 | U17: QRND8002151 | V17: 100436601
A18: U1481A10R370 | B18: 1230.22 | C18: U1481A10R370 | D18: 362 | E18: U1481 | F18: A | G18: 10 | H18: R | I18: 3 | J18: W | K18: 70 | L18: 71 | M18: 1230.22 | N18: 1230.23 | O18: 1230.22 | P18: 1230.23 | Q18: 36314751 | R18: 36314761 | S18: 36314741 | T18: 2016-09-29T04:51:13 | U18: QRND8002081 | V18: 100436811
A19: U1481A11R1131 | B19: 1238.51 | C19: U1481A11R1131 | D19: 362 | E19: U1481 | F19: A | G19: 11 | H19: R | I19: 1 | J19: W | K19: 131 | L19: 132 | M19: 1238.51 | N19: 1238.52 | O19: 1238.51 | P19: 1238.52 | Q19: 36314121 | R19: 36314231 | S19: 36314011 | T19: 2016-09-29T04:40:29 | U19: QRND8002491 | V19: 100436611
A20: U1481A12R238 | B20: 1248.31 | C20: U1481A12R238 | D20: 362 | E20: U1481 | F20: A | G20: 12 | H20: R | I20: 2 | J20: W | K20: 38 | L20: 39 | M20: 1248.31 | N20: 1248.32 | O20: 1248.31 | P20: 1248.32 | Q20: 36314171 | R20: 36314321 | S20: 36314041 | T20: 2016-09-29T04:40:30 | U20: QRND8002951 | V20: 100436631
A21: U1481A13R16 | B21: 1256.76 | C21: U1481A13R16 | D21: 362 | E21: U1481 | F21: A | G21: 13 | H21: R | I21: 1 | J21: W | K21: 6 | L21: 7 | M21: 1256.76 | N21: 1256.77 | O21: 1256.76 | P21: 1256.77 | Q21: 36314191 | R21: 36314341 | S21: 36314061 | T21: 2016-09-29T04:40:31 | U21: QRND8003371 | V21: 100436641
A22: U1481A14R1126 | B22: 1267.66 | C22: U1481A14R1126 | D22: 362 | E22: U1481 | F22: A | G22: 14 | H22: R | I22: 1 | J22: W | K22: 126 | L22: 127 | M22: 1267.66 | N22: 1267.67 | O22: 1267.66 | P22: 1267.67 | Q22: 36314131 | R22: 36314291 | S22: 36314031 | T22: 2016-09-29T04:40:30 | U22: QRND8004171 | V22: 100436621
A23: U1481A15R2100 | B23: 1278.43 | C23: U1481A15R2100 | D23: 362 | E23: U1481 | F23: A | G23: 15 | H23: R | I23: 2 | J23: W | K23: 100 | L23: 101 | M23: 1278.43 | N23: 1278.44 | O23: 1278.43 | P23: 1278.44 | Q23: 36314201 | R23: 36314361 | S23: 36314081 | T23: 2016-09-29T04:40:31 | U23: QRND8005151 | V23: 100436661
A24: U1481A15R367 | B24: 1279.14 | C24: U1481A15R367 | D24: 362 | E24: U1481 | F24: A | G24: 15 | H24: R | I24: 3 | J24: W | K24: 67 | L24: 68 | M24: 1279.14 | N24: 1279.15 | O24: 1279.14 | P24: 1279.15 | Q24: 36314141 | R24: 36314311 | S24: 36314051 | T24: 2016-09-29T04:40:31 | U24: QRND8005171 | V24: 100436651
A25: U1481A16R3127 | B25: 1289.74 | C25: U1481A16R3127 | D25: 362 | E25: U1481 | F25: A | G25: 16 | H25: R | I25: 3 | J25: W | K25: 127 | L25: 128 | M25: 1289.74 | N25: 1289.75 | O25: 1289.74 | P25: 1289.75 | Q25: 36314211 | R25: 36314371 | S25: 36314101 | T25: 2016-09-29T04:40:31 | U25: QRND8005761 | V25: 100436681
A26: U1481A16R485 | B26: 1290.83 | C26: U1481A16R485 | D26: 362 | E26: U1481 | F26: A | G26: 16 | H26: R | I26: 4 | J26: W | K26: 85 | L26: 86 | M26: 1290.83 | N26: 1290.84 | O26: 1290.83 | P26: 1290.84 | Q26: 36314161 | R26: 36314331 | S26: 36314071 | T26: 2016-09-29T04:40:31 | U26: QRND8005801 | V26: 100436671
A27: U1481A17R114 | B27: 1295.74 | C27: U1481A17R114 | D27: 362 | E27: U1481 | F27: A | G27: 17 | H27: R | I27: 1 | J27: W | K27: 14 | L27: 15 | M27: 1295.74 | N27: 1295.75 | O27: 1295.74 | P27: 1295.75 | Q27: 36314221 | R27: 36314381 | S27: 36314111 | T27: 2016-09-29T04:40:32 | U27: QRND8006181 | V27: 100436691
A28: U1481A18R1111 | B28: 1306.41 | C28: U1481A18R1111 | D28: 362 | E28: U1481 | F28: A | G28: 18 | H28: R | I28: 1 | J28: W | K28: 111 | L28: 112 | M28: 1306.41 | N28: 1306.42 | O28: 1306.41 | P28: 1306.42 | Q28: 36314181 | R28: 36314351 | S28: 36314091 | T28: 2016-09-29T04:40:32 | U28: QRND8006761 | V28: 100436701
A29: U1481A19R2125 | B29: 1317.61 | C29: =CONCATENATE(E29,F29,G29,H29,I29,K29) -> U1481A19R2125 | D29: 362 | E29: U1481 | F29: A | G29: 19 | H29: R | I29: 2 | J29: W | K29: 125 | L29: 126 | M29: 1317.61 | N29: 1317.62 | O29: 1317.61 | P29: 1317.62 | Q29: 36348791 | R29: 36348831 | S29: 36348731 | T29: 2016-09-30T04:24:08 | U29: QRND8007531 | V29: 100569311
A30: U1481A19R580 | B30: 1320.95 | C30: U1481A19R580 | D30: 362 | E30: U1481 | F30: A | G30: 19 | H30: R | I30: 5 | K30: 80 | L30: 81 | M30: 1320.95 | N30: 1320.96 | O30: 1320.95 | P30: 1320.96 | Q30: 36348751 | R30: 36348781 | S30: 36348711 | T30: 2016-09-30T04:24:07 | U30: QRND8007561 | V30: 100569291
A31: U1481A20R1126 | B31: 1326.06 | C31: U1481A20R1126 | D31: 362 | E31: U1481 | F31: A | G31: 20 | H31: R | I31: 1 | J31: W | K31: 126 | L31: 127 | M31: 1326.06 | N31: 1326.07 | O31: 1326.06 | P31: 1326.07 | Q31: 36348771 | R31: 36348801 | S31: 36348721 | T31: 2016-09-30T04:24:08 | U31: QRND8008201 | V31: 100569301
A32: U1481A21R26 | B32: 1335.63 | C32: U1481A21R26 | D32: 362 | E32: U1481 | F32: A | G32: 21 | H32: R | I32: 2 | J32: W | K32: 6 | L32: 7 | M32: 1335.63 | N32: 1335.64 | O32: 1335.63 | P32: 1335.64 | Q32: 36348811 | R32: 36348841 | S32: 36348741 | T32: 2016-09-30T04:24:08 | U32: QRND8008601 | V32: 100569321
A33: U1481A22R263 | B33: 1345.98 | C33: U1481A22R263 | D33: 362 | E33: U1481 | F33: A | G33: 22 | H33: R | I33: 2 | J33: W | K33: 63 | L33: 64 | M33: 1345.98 | N33: 1345.99 | O33: 1345.98 | P33: 1345.99 | Q33: 36348821 | R33: 36348891 | S33: 36348761 | T33: 2016-09-30T04:24:08 | U33: QRND8009641 | V33: 100569331
A34: U1481A22R3128 | B34: 1347.48 | C34: U1481A22R3128 | D34: 362 | E34: U1481 | F34: A | G34: 22 | H34: R | I34: 3 | J34: W | K34: 128 | L34: 129 | M34: 1347.48 | N34: 1347.49 | O34: 1347.48 | P34: 1347.49 | Q34: 36348921 | R34: 36349021 | S34: 36348861 | T34: 2016-09-30T04:24:10 | U34: QRND8009751 | V34: 100569341
A35: U1481A23R133 | B35: 1354.33 | C35: U1481A23R133 | D35: 362 | E35: U1481 | F35: A | G35: 23 | H35: R | I35: 1 | J35: W | K35: 33 | L35: 34 | M35: 1354.33 | N35: 1354.34 | O35: 1354.33 | P35: 1354.34 | Q35: 36348931 | R35: 36349031 | S35: 36348881 | T35: 2016-09-30T04:24:10 | U35: CYL8010721 | V35: 100569351
A36: U1481A23R483 | B36: 1358.54 | C36: U1481A23R483 | D36: 362 | E36: U1481 | F36: A | G36: 23 | H36: R | I36: 4 | J36: W | K36: 83 | L36: 84 | M36: 1358.54 | N36: 1358.55 | O36: 1358.54 | P36: 1358.55 | Q36: 36348961 | R36: 36349041 | S36: 36348851 | T36: 2016-09-30T04:24:10 | U36: CYL8010951 | V36: 100569361
A37: U1481A23R59 | B37: 1358.96 | C37: U1481A23R59 | D37: 362 | E37: U1481 | F37: A | G37: 23 | H37: R | I37: 5 | J37: W | K37: 9 | L37: 10 | M37: 1358.96 | N37: 1358.97 | O37: 1358.96 | P37: 1358.97 | Q37: 36348941 | R37: 36349051 | S37: 36348901 | T37: 2016-09-30T04:24:11 | U37: CYL8010981 | V37: 100569381
A38: U1481A24R127 | B38: 1363.97 | C38: U1481A24R127 | D38: 362 | E38: U1481 | F38: A | G38: 24 | H38: R | I38: 1 | J38: W | K38: 27 | L38: 28 | M38: 1363.97 | N38: 1363.98 | O38: 1363.966 | P38: 1363.976 | Q38: 36348951 | R38: 36349071 | S38: 36348911 | T38: 2016-09-30T04:24:11 | U38: CYL8011521 | V38: 100569391
A39: U1481A24R379 | B39: 1367.42 | C39: U1481A24R379 | D39: 362 | E39: U1481 | F39: A | G39: 24 | H39: R | I39: 3 | J39: W | K39: 79 | L39: 80 | M39: 1367.42 | N39: 1367.43 | O39: 1367.367 | P39: 1367.377 | Q39: 36348971 | R39: 36349061 | S39: 36348871 | T39: 2016-09-30T04:24:10 | U39: CYL8011531 | V39: 100569371
A40: U1481A24R690 | B40: 1371.33 | C40: U1481A24R690 | D40: 362 | E40: U1481 | F40: A | G40: 24 | H40: R | I40: 6 | K40: 90 | L40: 91 | M40: 1371.33 | N40: 1371.34 | O40: 1371.221 | P40: 1371.231 | Q40: 36349081 | R40: 36349121 | S40: 36348981 | T40: 2016-09-30T04:24:12 | U40: CYL8011881 | V40: 100569401
A41: U1481A24R797 | B41: 1372.41 | C41: U1481A24R797 | D41: 362 | E41: U1481 | F41: A | G41: 24 | H41: R | I41: 7 | J41: W | K41: 97 | L41: 98 | M41: 1372.41 | N41: 1372.42 | O41: 1372.286 | P41: 1372.296 | Q41: 36349111 | R41: 36349151 | S41: 36348991 | T41: 2016-09-30T04:24:12 | U41: CYL8011621 | V41: 100569411
A42: U1481A25R126 | B42: 1373.66 | C42: U1481A25R126 | D42: 362 | E42: U1481 | F42: A | G42: 25 | H42: R | I42: 1 | J42: W | K42: 26 | L42: 27 | M42: 1373.66 | N42: 1373.67 | O42: 1373.643 | P42: 1373.652 | Q42: 36349091 | R42: 36349131 | S42: 36349001 | T42: 2016-09-30T04:24:12 | U42: CYL8012311 | V42: 100569421
A43: U1481A25R232 | B43: 1374.73 | C43: U1481A25R232 | D43: 362 | E43: U1481 | F43: A | G43: 25 | H43: R | I43: 2 | J43: W | K43: 32 | L43: 33 | M43: 1374.73 | N43: 1374.74 | O43: 1374.642 | P43: 1374.651 | Q43: 36349101 | R43: 36349141 | S43: 36349011 | T43: 2016-09-30T04:24:13 | U43: CYL8012411 | V43: 100569431
A44: U1481A26R166 | B44: 1375.76 | C44: U1481A26R166 | D44: 362 | E44: U1481 | F44: A | G44: 26 | H44: R | I44: 1 | J44: W | K44: 66 | L44: 67 | M44: 1375.76 | N44: 1375.77 | O44: 1375.76 | P44: 1375.77 | Q44: 36386241 | R44: 36386401 | S44: 36386081 | T44: 2016-10-01T04:48:23 | U44: QRND8013261 | V44: 100663631
A45: U1481A26R3125 | B45: 1379.32 | C45: U1481A26R3125 | D45: 362 | E45: U1481 | F45: A | G45: 26 | H45: R | I45: 3 | J45: W | K45: 125 | L45: 126 | M45: 1379.32 | N45: 1379.33 | O45: 1379.32 | P45: 1379.33 | Q45: 36386221 | R45: 36386371 | S45: 36386071 | T45: 2016-10-01T04:48:23 | U45: QRND8013251 | V45: 100663621
A46: U1481A27R655 | B46: 1389.59 | C46: U1481A27R655 | D46: 362 | E46: U1481 | F46: A | G46: 27 | H46: R | I46: 6 | K46: 55 | L46: 56 | M46: 1389.59 | N46: 1389.6 | O46: 1389.59 | P46: 1389.6 | Q46: 36386281 | R46: 36386441 | S46: 36386101 | T46: 2016-10-01T04:48:24 | U46: QRND8015901 | V46: 100663651
A47: U1481A27R828 | B47: 1391.52 | C47: U1481A27R828 | D47: 362 | E47: U1481 | F47: A | G47: 27 | H47: R | I47: 8 | J47: W | K47: 28 | L47: 29 | M47: 1391.52 | N47: 1391.53 | O47: 1391.52 | P47: 1391.53 | Q47: 36386231 | R47: 36386381 | S47: 36386091 | T47: 2016-10-01T04:48:24 | U47: QRND8016001 | V47: 100663641
A48: U1481A28R43 | B48: 1396.01 | C48: U1481A28R43 | D48: 362 | E48: U1481 | F48: A | G48: 28 | H48: R | I48: 4 | J48: W | K48: 3 | L48: 4 | M48: 1396.01 | N48: 1396.02 | O48: 1395.877 | P48: 1395.886 | Q48: 36386301 | R48: 36386461 | S48: 36386121 | T48: 2016-10-01T04:48:24 | U48: QRND8017411 | V48: 100663671
A49: U1481A29R297 | B49: 1404.72 | C49: U1481A29R297 | D49: 362 | E49: U1481 | F49: A | G49: 29 | H49: R | I49: 2 | J49: W | K49: 97 | L49: 98 | M49: 1404.72 | N49: 1404.73 | O49: 1404.72 | P49: 1404.73 | Q49: 36386251 | R49: 36386391 | S49: 36386111 | T49: 2016-10-01T04:48:24 | U49: QRND8018321 | V49: 100663661
A50: U1481A29R5116 | B50: 1408.72 | C50: U1481A29R5116 | D50: 362 | E50: U1481 | F50: A | G50: 29 | H50: R | I50: 5 | J50: W | K50: 116 | L50: 117 | M50: 1408.72 | N50: 1408.73 | O50: 1408.72 | P50: 1408.73 | Q50: 36386311 | R50: 36386471 | S50: 36386141 | T50: 2016-10-01T04:48:25 | U50: QRND8018561 | V50: 100663691
A51: U1481A29R621 | B51: 1409.16 | C51: U1481A29R621 | D51: 362 | E51: U1481 | F51: A | G51: 29 | H51: R | I51: 6 | J51: W | K51: 21 | L51: 22 | M51: 1409.16 | N51: 1409.17 | O51: 1409.16 | P51: 1409.17 | Q51: 36386261 | R51: 36386421 | S51: 36386131 | T51: 2016-10-01T04:48:25 | U51: QRND8018591 | V51: 100663681
A52: U1481A30R3118 | B52: 1416.23 | C52: U1481A30R3118 | D52: 362 | E52: U1481 | F52: A | G52: 30 | H52: R | I52: 3 | J52: W | K52: 118 | L52: 119 | M52: 1416.23 | N52: 1416.24 | O52: 1416.159 | P52: 1416.168 | Q52: 36386321 | R52: 36386451 | S52: 36386161 | T52: 2016-10-01T04:48:25 | U52: QRND8019101 | V52: 100663711
A53: U1481A30R596 | B53: 1418.74 | C53: U1481A30R596 | D53: 362 | E53: U1481 | F53: A | G53: 30 | H53: R | I53: 5 | J53: W | K53: 96 | L53: 97 | M53: 1418.74 | N53: 1418.75 | O53: 1418.623 | P53: 1418.632 | Q53: 36386271 | R53: 36386411 | S53: 36386151 | T53: 2016-10-01T04:48:25 | U53: QRND8019021 | V53: 100663701
A54: U1481A30R6137 | B54: 1420.39 | C54: U1481A30R6137 | D54: 362 | E54: U1481 | F54: A | G54: 30 | H54: R | I54: 6 | J54: W | K54: 137 | L54: 138 | M54: 1420.39 | N54: 1420.4 | O54: 1420.243 | P54: 1420.253 | Q54: 36386331 | R54: 36386481 | S54: 36386181 | T54: 2016-10-01T04:48:26 | U54: QRND8019041 | V54: 100663731
A55: U1481A31R152 | B55: 1422.52 | C55: U1481A31R152 | D55: 362 | E55: U1481 | F55: A | G55: 31 | H55: R | I55: 1 | J55: W | K55: 52 | L55: 53 | M55: 1422.52 | N55: 1422.53 | O55: 1422.52 | P55: 1422.53 | Q55: 36386291 | R55: 36386431 | S55: 36386171 | T55: 2016-10-01T04:48:26 | U55: QRND8019901 | V55: 100663721
A56: U1481A31R336 | B56: 1425.11 | C56: U1481A31R336 | D56: 362 | E56: U1481 | F56: A | G56: 31 | H56: R | I56: 3 | J56: W | K56: 36 | L56: 37 | M56: 1425.11 | N56: 1425.12 | O56: 1425.11 | P56: 1425.12 | Q56: 36386361 | R56: 36386511 | S56: 36386201 | T56: 2016-10-01T04:48:28 | U56: QRND8020231 | V56: 100663751
A57: U1481A31R563 | B57: 1428.24 | C57: U1481A31R563 | D57: 362 | E57: U1481 | F57: A | G57: 31 | H57: R | I57: 5 | J57: W | K57: 63 | L57: 64 | M57: 1428.24 | N57: 1428.25 | O57: 1428.24 | P57: 1428.25 | Q57: 36386341 | R57: 36386491 | S57: 36386191 | T57: 2016-10-01T04:48:28 | U57: QRND8019911 | V57: 100663741
A58: U1481A31R664 | B58: 1429.72 | C58: U1481A31R664 | D58: 362 | E58: U1481 | F58: A | G58: 31 | H58: R | I58: 6 | J58: W | K58: 64 | L58: 65 | M58: 1429.72 | N58: 1429.73 | O58: 1429.72 | P58: 1429.73 | Q58: 36386351 | R58: 36386501 | S58: 36386211 | T58: 2016-10-01T04:48:28 | U58: QRND8019921 | V58: 100663761
A59: U1481A32R491 | B59: 1436.42 | C59: U1481A32R491 | D59: 362 | E59: U1481 | F59: A | G59: 32 | H59: R | I59: 4 | J59: W | K59: 91 | L59: 92 | M59: 1436.42 | N59: 1436.43 | O59: 1436.42 | P59: 1436.43 | Q59: 36407991 | R59: 36408001 | S59: 36407961 | T59: 2016-10-02T04:32:01 | U59: QRND8021751 | V59: 100680941
A60: U1481A33R688 | B60: 1448.96 | C60: U1481A33R688 | D60: 362 | E60: U1481 | F60: A | G60: 33 | H60: R | I60: 6 | J60: W | K60: 88 | L60: 89 | M60: 1448.96 | N60: 1448.97 | O60: 1448.96 | P60: 1448.97 | Q60: 36408011 | R60: 36408061 | S60: 36407971 | T60: 2016-10-02T04:32:01 | U60: QRND8022991 | V60: 100680931
A61: U1481A34R20 | B61: 1452.43 | C61: U1481A34R20 | D61: 362 | E61: U1481 | F61: A | G61: 34 | H61: R | I61: 2 | J61: W | K61: 0 | L61: 2 | M61: 1452.43 | N61: 1452.45 | O61: 1452.43 | P61: 1452.45 | Q61: 36408021 | R61: 36408071 | S61: 36407981 | T61: 2016-10-02T04:32:01 | U61: QRND8024001 | V61: 100680951
A62: U1481A34R538 | B62: 1457.17 | C62: U1481A34R538 | D62: 362 | E62: U1481 | F62: A | G62: 34 | H62: R | I62: 5 | J62: W | K62: 38 | L62: 39 | M62: 1457.17 | N62: 1457.18 | O62: 1457.17 | P62: 1457.18 | Q62: 36408081 | R62: 36408111 | S62: 36408031 | T62: 2016-10-02T04:32:03 | U62: QRND8024161 | V62: 100680961
A63: U1481A35R1109 | B63: 1461.99 | C63: U1481A35R1109 | D63: 362 | E63: U1481 | F63: A | G63: 35 | H63: R | I63: 1 | J63: W | K63: 109 | L63: 110 | M63: 1461.99 | N63: 1462 | O63: 1461.99 | P63: 1462 | Q63: 36408091 | R63: 36408121 | S63: 36408041 | T63: 2016-10-02T04:32:03 | U63: QRND8024871 | V63: 100680981
A64: U1481A35R461 | B64: 1465.36 | C64: U1481A35R461 | D64: 362 | E64: U1481 | F64: A | G64: 35 | H64: R | I64: 4 | J64: W | K64: 61 | L64: 62 | M64: 1465.36 | N64: 1465.37 | O64: 1465.36 | P64: 1465.37 | Q64: 36408101 | R64: 36408191 | S64: 36408051 | T64: 2016-10-02T04:32:03 | U64: QRND8024861 | V64: 100680971
A65: U1481A35R891 | B65: 1470.15 | C65: U1481A35R891 | D65: 362 | E65: U1481 | F65: A | G65: 35 | H65: R | I65: 8 | J65: W | K65: 91 | L65: 92 | M65: 1470.15 | N65: 1470.16 | O65: 1470.15 | P65: 1470.16 | Q65: 36408221 | R65: 36408281 | S65: 36408151 | T65: 2016-10-02T04:32:05 | U65: QRND8024851 | V65: 100681001
A66: U1481A36R4102 | B66: 1475.59 | C66: U1481A36R4102 | D66: 362 | E66: U1481 | F66: A | G66: 36 | H66: R | I66: 4 | J66: W | K66: 102 | L66: 103 | M66: 1475.59 | N66: 1475.6 | O66: 1475.59 | P66: 1475.6 | Q66: 36408201 | R66: 36408241 | S66: 36408131 | T66: 2016-10-02T04:32:05 | U66: QRND8026041 | V66: 100680991
A67: U1481A36R549 | B67: 1476.35 | C67: U1481A36R549 | D67: 362 | E67: U1481 | F67: A | G67: 36 | H67: R | I67: 5 | J67: W | K67: 49 | L67: 50 | M67: 1476.35 | N67: 1476.36 | O67: 1476.35 | P67: 1476.36 | Q67: 36408231 | R67: 36408301 | S67: 36408161 | T67: 2016-10-02T04:32:06 | U67: QRND8026081 | V67: 100681011
A68: U1481A37R224 | B68: 1482.1 | C68: U1481A37R224 | D68: 362 | E68: U1481 | F68: A | G68: 37 | H68: R | I68: 2 | J68: W | K68: 24 | L68: 25 | M68: 1482.1 | N68: 1482.11 | O68: 1482.1 | P68: 1482.11 | Q68: 36408251 | R68: 36408311 | S68: 36408171 | T68: 2016-10-02T04:32:06 | U68: QRND8027161 | V68: 100681031
A69: U1481A37R281 | B69: 1482.67 | C69: U1481A37R281 | D69: 362 | E69: U1481 | F69: A | G69: 37 | H69: R | I69: 2 | J69: W | K69: 81 | L69: 82 | M69: 1482.67 | N69: 1482.68 | O69: 1482.67 | P69: 1482.68 | Q69: 36408211 | R69: 36408271 | S69: 36408141 | T69: 2016-10-02T04:32:06 | U69: QRND8027151 | V69: 100681021
A70: U1481A37R6100 | B70: 1487.66 | C70: U1481A37R6100 | D70: 362 | E70: U1481 | F70: A | G70: 37 | H70: R | I70: 6 | J70: W | K70: 100 | L70: 101 | M70: 1487.66 | N70: 1487.67 | O70: 1487.66 | P70: 1487.67 | Q70: 36408261 | R70: 36408291 | S70: 36408181 | T70: 2016-10-02T04:32:06 | U70: QRND8027731 | V70: 100681041
A71: U1481A38R262 | B71: 1492.21 | C71: U1481A38R262 | D71: 362 | E71: U1481 | F71: A | G71: 38 | H71: R | I71: 2 | J71: W | K71: 62 | L71: 63 | M71: 1492.21 | N71: 1492.22 | O71: 1492.21 | P71: 1492.22 | Q71: 36408401 | R71: 36408421 | S71: 36408381 | T71: 2016-10-02T07:26:24 | U71: QRND8028531 | V71: 100681431
A72: U1481A38R626 | B72: 1496.89 | C72: U1481A38R626 | D72: 362 | E72: U1481 | F72: A | G72: 38 | H72: R | I72: 6 | J72: W | K72: 26 | L72: 27 | M72: 1496.89 | N72: 1496.9 | O72: 1496.89 | P72: 1496.9 | Q72: 36408411 | R72: 36408431 | S72: 36408391 | T72: 2016-10-02T07:26:24 | U72: QRND8028761 | V72: 100681441
C73: =CONCATENATE(E73,F73,G73,H73,I73,K73) -> 
C131: =CONCATENATE(E131,F131,G131,H131,I131,K131) -> 

Sheet Sheet1
A1: 1152.12 | B1: 1.573675574 | C1: 1152.12
A2: 1153.25 | B2: 4.726993498 | C2: 1153.25
A3: 1160.53 | B3: 1.662158103 | C3: 1160.53
A4: 1164.17 | B4: 0.7186530668 | C4: 1164.17
A5: 1172.11 | B5: 1.016850703 | C5: 1172.11
A6: 1180.13 | B6: 4.639924435 | C6: 1180.13
A7: 1190.33 | B7: 2.310345888 | C7: 1190.33
A8: 1193.23 | B8: 5.717020183 | C8: 1193.23
A9: 1200.32 | B9: 5.371631133 | C9: 1200.32
A10: 1200.83 | B10: 4.216943007 | C10: 1200.83
A11: 1201.53 | B11: 3.777128078 | C11: 1201.53
A12: 1202 | B12: 6.763062339 | C12: 1202
A13: 1208.17 | B13: 3.675212079 | C13: 1208.17
A14: 1220.28 | B14: 6.451876613 | C14: 1220.28
A15: 1221.37 | B15: 6.539437864 | C15: 1221.37
A16: 1190.33 | B16: 4.126183701 | C16: 1190.33
A17: 1228.01 | B17: 1.262873117 | C17: 1228.01
A18: 1230.22 | B18: 3.054950278 | C18: 1230.22
A19: 1238.51 | B19: 3.985213206 | C19: 1238.51
A20: 1248.31 | B20: 2.358470648 | C20: 1248.31
A21: 1256.76 | B21: 4.096598472 | C21: 1256.76
A22: 1267.66 | B22: 2.936675671 | C22: 1267.66
A23: 1278.43 | B23: 4.052045068 | C23: 1278.43
A24: 1279.14 | B24: 2.329631861 | C24: 1279.14
A25: 1289.74 | B25: 8.485596208 | C25: 1289.74
A26: 1290.83 | B26: 0 | C26: 1290.83
A27: 1295.74 | B27: 2.067410099 | C27: 1295.74
A28: 1306.41 | B28: 1.981186868 | C28: 1306.41
A29: 1317.61 | B29: 1.379572574 | C29: 1317.61
A30: 1320.95 | B30: 3.36199751 | C30: 1320.95
A31: 1326.06 | B31: 4.999907864 | C31: 1326.06
A32: 1335.63 | B32: 3.903167601 | C32: 1335.63
A33: 1345.98 | B33: 4.152181505 | C33: 1345.98
A34: 1347.48 | B34: 4.107247901 | C34: 1347.48
A35: 1354.33 | B35: 3.358687154 | C35: 1354.33
A36: 1358.54 | B36: 3.282183577 | C36: 1358.54
A37: 1358.96 | B37: 3.192787268 | C37: 1358.96
A38: 1363.97 | B38: 0 | C38: 1363.97
A39: 1367.42 | B39: 1.083860934 | C39: 1367.42
A40: 1371.33 | B40: 1.49830165 | C40: 1371.33
A41: 1372.41 | B41: 1.093822289 | C41: 1372.41
A42: 1373.66 | B42: 1.546017683 | C42: 1373.66
A43: 1374.73 | B43: 1.003867993 | C43: 1374.73
